Workbook

Sheet Introduction and outcomes
C3: Introduction to the schools financial value standard (SFVS)
C5: The schools financial value standard helps to provide schools with assurance that they are meeting the basic standards necessary to achieve a good level of financial health and resource management. The tool can be used to identify possible areas for change to ensure that resources are being used to support high-quality teaching and the best education outcomes for pupils. The tool is in two parts:
C6: 1. A checklist, which asks a number of questions of governing bodies in six areas of resource management to provide assurance that the school is managing its resources effectively.
C7: 2. A dashboard, which shows how a school's data compares to thresholds on a range of statistics that have been identified as indicators for good resource management and outcomes.
C10: Outcome of schools financial value standard (SFVS)
C12: Summary of agreed action and timetable for reporting back:
C15: Signature: | O15: Chair of governing body / management committee
C17: Full name of signatory:
C19: Date SFVS agreed by full governing body / managament committee
C21: Date SFVS submitted to local authority for review:

Sheet Checklist
C3: Schools financial value standard
C5: The checklist asks a number of questions of governing bodies in six areas of resource management to help provide assurance that resources are being managed effectively. The completion of this assessment forms part of the schools financial value standard. Your return must be submitted to your local authority.
C6: Guidance on completion of this document can be found here. This guidance also includes examples of good practice and details further support available to assist governing bodies in addressing specific issues. Clicking on the individual questions below will also take you to the relevant section of the guidance.
C7: Schools should answer each question with 'yes', 'no', or 'in part' from the drop down lists provided. They should provide comments, evidence and proposed actions for questions as appropriate.
C9: School name: | H9: The Richmond School, Skegness
C11: School LAEstab number: | H11: 925/2219
M13: Answer | O13: Comments, evidence and proposed actions
C14: A. Governance
C16: 1 | D16: In the view of the governing body and senior staff, does the governing body have adequate financial skills among its members to fulfil its role of challenge and support in the field of budget management and value for money? | K16: Q1 guidance | M16: Yes | O16: The governing body has members experienced in budget management and is made up of skilled professionals. The governing body needs to ensure that any new governor has financial experience or is provided with the relevant training.
C17: 2 | D17: Does the governing body have a finance committee (or equivalent) with clear terms of reference and a knowledgeable and experienced chair? | K17: Q2 guidance | M17: Yes | O17: The governing body has an experienced Finance Committee with clear terms of reference. The chair is experienced.
C18: 3 | D18: Does the governing body board receive clear and concise monitoring reports of the school's budget position at least six times a year? | K18: Q3 guidance | M18: Yes | O18: Finance meetings are held six times per year with a financial overview presented at the meetings of the full Governing Body.
C19: 4 | D19: Are business interests of governing body members and staff properly registered and taken into account so as to avoid conflicts of interest? | K19: Q4 guidance | M19: Yes | O19: All governors and staff complete a register of business interests. This is published on the school's website. It is an agenda item at every Full Governors' Meeting
C20: 5 | D20: Does the school have access to an adequate level of financial expertise, including when specialist finance staff are absent, e.g. on sick leave? | K20: Q5 guidance | M20: Yes | O20: The School Bursar, School Administrator and Head Teacher have all received relevant training. Support is accessed regularly from the Helpdesk and from the school's involvement in the Gold Finance package.
C22: B. School strategy
C24: 6 | D24: Does the school have a realistic, sustainable and flexible financial strategy in place for at least the next 3 years, based on realistic assumptions about future funding, pupil numbers and pressures? | K24: Q6 guidance | M24: Yes | O24: The financial strategy for the next three years is detailed as part of the five-year finance plan. This is worked on alongside LCC as part of the Gold Finance Package. Pupil numbers are now stable. Pressures of the Covid-19 pandemic have put a strain on some budget areas.
C25: 7 | D25: Is the financial strategy integrated with the school’s strategy for raising standards and attainment? | K25: Q7 guidance | M25: Yes | O25: The school is clear about its areas for development and the need for high quality teaching in order to raise standards and attainment. The SLT is currently working on detailed plans linked to the Catch-Up Funding.
C26: 8 | D26: Does the school have an appropriate business continuity or disaster recovery plan, including an up-to-date asset register and adequate insurance? | K26: Q8 guidance | M26: In part | O26: An up-to-date asset register is maintained through the use of Parago. Insurance is purchased in line with LCC guidance and through their relevant channels. The Disaster Recovery Plan is currently being update and will be ready to be agreed by the governing body at thier November meeting.
M27: =IF(OR(ROUND(SUM(M21:M25),3)=100%,SUM(M21:M25)=0),"","Section must sum to 100%") -> 
C28: C. Setting the annual budget
C30: 9 | D30: Does the school set a well-informed and balanced budget each year (with an agreed and timed plan for eliminating any deficit)? | K30: Q9 guidance | M30: Yes | O30: Through robust and rigorous budget monitoring, the budget deficit was eliminated during 2019-20 and £47,844 was carried forward into this financial year.
C31: 10 | D31: Does the budget setting process allow sufficient time for the governing body to scrutinise and challenge the information provided? | K31: Q10 guidance | M31: Yes | O31: Governors are provided with a detailed budget proposal and budget summary prior to the meeting at which the budget is to be ratified.
C32: 11 | D32: Is the school realistic in its pupil number projections and can it move quickly to recast the budget if the projections and the reality are materially different? | K32: Q11 guidance | M32: Yes | O32: Following the expected drop in pupil numbers at the end of the academic year 2019-20, pupil number projections are realistic. The school is oversubscribed for Foundation Stage pupils every year and has a waiting list for some other year groups.
C33: 12 | D33: Is end year outturn in line with budget projections, or if not, is the governing body alerted to significant variations in a timely manner, and do such variations result from explicitly planned changes or from genuinely unforeseeable circumstances? | K33: Q12 guidance | M33: Yes | O33: The budget outturn for 2019-20 was in line with budget projections. This was achieved through robust and rigourous monitoring and regular budget forecasting.
C34: 13 | D34: Are balances at a reasonable level and does the school have a clear plan for using the money it plans to hold in balance at the end of each year? | K34: Q13 guidance | M34: Yes | O34: Balances were at a reasonable level at the end of last financial year. There are plans in place to use the money, predominantly on staffing costs, due to increasing numbers of pupils with EHCPs
M35: =IF(OR(ROUND(SUM(M28:M34),3)=100%,SUM(M28:M34)=0),"","Section must sum to 100%") -> 
C36: D. Staffing
C38: 14 | D38: Does the school review and challenge its staffing structure regularly to ensure it is the best structure to meet the needs of the school whilst maintaining financial integrity? | K38: Q14 guidance | M38: Yes | O38: Whilst the main staffing structure remains stable, a reduction has taken place in the number of Teaching Assistants claiming extra hours for covering indivdual pupils at lunchtimes and for the delivery of imterventions. Non-teaching staff are only expected to work their contracted hours. The only exception to this is where staff claim for covering Breakfast Club and After-School Club, which are self-funding. The long-term plan is to give these staff contracted hours as Breakfast Club/After-School Club helpers.
C39: 15 | D39: Has the use of professional independent advice informed part of the pay decision process in relation to the head teacher and is it tightly correlated to strong educational outcomes and sound financial management? | K39: Q15 guidance | M39: Yes | O39: An independent Education Advisor is employed by the school to support governors with the Head teacher's Performnace Management.
C40: 16 | D40: Does the school benchmark the size of its senior leadership team annually against that of similar schools? | K40: Q16 guidance | M40: Yes | O40: As part of the staffing restructure, the governing body benchmarked the size of its senior leadership against similar schools.
M41: =IF(OR(ROUND(SUM(M34:M39),3)=100%,SUM(M34:M39)=0),"","Section must sum to 100%") -> 
C42: E. Value for money
C44: 17 | D44: Does the school benchmark its income and expenditure annually against that of similar schools and investigate further where any category appears to be out of line? | K44: Q17 guidance | M44: Yes | O44: Benchmarking takes place annually at a meeting of the Finance Committee
C45: 18 | D45: Does the school have procedures for purchasing goods and services that both meet legal requirements and secure value for money? | K45: Q18 guidance | M45: Yes | O45: The school purchases goods and services from reputable companies. Three quotes are obtained for amounts over £10,000. Recently
C46: 19 | D46: Is the governing body given the opportunity to challenge the school’s plans for replacing contracts for goods and services that are due to expire shortly? | K46: Q19 guidance | M46: Yes | O46: Contracts which are due for expiry are always discussed at governors' Finance Meetings. Where the service provided is deemed to be insufficient further quotes are obtained and discussed.
C47: 20 | D47: Does the School consider collaboration with others, e.g. on sharing staff or joint purchasing, where that would improve value for money? | K47: Q20 guidance | M47: In part | O47: There have been no recent collaborations with schools re staffing or purchasing. The school and governing body continue to be open to any opportunities that arise in this regard.
C48: 21 | D48: Do you compare your non-staff expenditure against the DfE recommended national deals to ensure you are achieving best value? | K48: Q21 guidance | M48: In part | O48: Comparisons are made for some areas of expenditure but not all.
C49: 22 | D49: Does the school maintain its premises and other assets to an adequate standard and make best use of capital monies for this purpose? | K49: Q22 guidance | M49: Yes | O49: There is a rolling programme of maintenance and refurbishment which uses funds from Devolved Capital.
M50: =IF(OR(ROUND(SUM(M45:M49),3)=100%,SUM(M45:M49)=0),"","Section must sum to 100%") -> 
C51: F. Protecting public money
C53: 23 | D53: Is the governing body sure that there are no outstanding matters from audit reports, internal audit reports or from previous consideration of weaknesses by the governing body? | K53: Q23 guidance | M53: Yes | O53: The issues identified in the previous audit have all been addressed.
C54: 24 | D54: Are there adequate arrangements in place to manage conflicts of interest or any related party transactions? | K54: Q24 guidance | M54: Yes | O54: All parties are required to declare interests prior to all governors' meetings. Senior staff are also required to declare any conflicts of interest.
C55: 25 | D55: Are there adequate arrangements in place to guard against fraud and theft by staff, contractors and suppliers? (Please note any instance of fraud or theft detected in the last 12 months) | K55: Q25 guidance | M55: Yes | O55: The Bursar has put in place strict arrangements to guard against fraud and theft. There have been no instances of fraud or theft detected in the last twelve months or previously.
C56: 26 | D56: Are all staff aware of the school’s whistleblowing arrangements and to whom they should report concerns? | K56: Q26 guidance | M56: Yes | O56: All staff have read the Whistleblowing Policy. A copy is available on the staff noticeboard, along with the flowchart about which pathway to follow. The LA policy was ratified at the September meeting of the full governing body.
C57: 27 | D57: Does the school have an accounting system that is adequate and properly run and delivers accurate reports, including the annual Consistent Financial Reporting return? | K57: Q27 guidance | M57: Yes | O57: The school uses BusinessWorldOn which is supported by SERCO and LCC. As detailed at A3 above the Governing Body has expressed frustration towards this package but consider the alternative of sourcing an unsupported accounting system to be too high risk at this time.
C58: 28 | D58: Does the school have adequate arrangements for audit of voluntary funds? | K58: Q28 guidance | M58: Yes | O58: The School Fund is audited annually.
M59: =IF(OR(ROUND(SUM(M54:M57),3)=100%,SUM(M54:M57)=0),"","Section must sum to 100%") -> 
C60: G. SFVS dashboard
C62: 29 | D62: Have the results of the dashboard been carefully considered and potential follow-up actions identified? | K62: Q29 guidance | M62: Yes | O62: The SLT and Governing Body have considered the dashboard results and, in particular, those areas not rag-rated green. Potential follow-up actions to be considered by the Governing Body and School going forward are recorded in Section F of the Dashboard.

Sheet Dashboard
C3: Schools financial value standard - dashboard
C5: Effective resource management is about how a school uses its resources to drive outcomes for its pupils. A school can improve outcomes by using its resources more effectively. The dashboard below is designed to help schools identify areas for improved resource management. It shows how a school compares to thresholds on a range of key indicators. The completion of this assessment forms part of the annual schools financial value standard.
C7: Using the dashboard Schools should use the most up to date data available to them, and not rely on lagged published data. Complete all highlighted cells.
C8: Guidance on calculating or collecting the data for the school so that metrics are compared to thresholds consistently can be found here. Clicking on the link next to individual indicators below will also take you to the relevant section of the guidance.
C9: Either input the school's percentages and ratios directly, or complete the Optional - input raw data form with spending information and school characteristics. The percentages and ratios in the dashboard will then auto-calculate.
C11: Using the results from the dashboard Click here for explanations of what the red, amber and green (RAG) ratings mean and what do with the results.
C13: A. Information about your school
A14: * | G14: 1
C15: School name: | D15: The Richmond School, Skegness | F15: Click here to see the RAG rating data for this school
C16: School LAEstab number: | D16: 9252219
C17: Phase: | D17: Primary | F17: Input the school's percentages and ratios directly below, or click here to input raw spending and characteristics data for your school
C18: Region: | D18: East Midlands
C19: Number of pupils: | D19: 420
C20: % of pupils eligible for FSM: | D20: 33.0%
C21: I'm entering data for the year: | D21: 2019-20 (financial year)
C23: This school is being compared to other:
C24: =IF(OR(D$17="",D$18="",D$19="",D$20=""),"", "- "&Calcs!$J29& IF(D17="Primary"," primary schools with ",IF(D17="Secondary with sixth form"," secondary schools with a sixth form with ",IF(D17="Secondary without sixth form"," secondary schools without a sixth form with ",IF(D17="Special","special schools",IF(D17="Alternative provision","alternative provision schools",IF(D17="All-through","all-through schools",IF(D17="Nursery","nursery schools","")))))))&Calcs!$K29) -> - large primary schools with high levels of FSM
C25: =IF(OR(D$17="",D$18="",D$19="",D$20=""),"", IF(D17="Primary","- primary schools ",IF(D17="Secondary with sixth form","- secondary schools with a sixth form ",IF(D17="Secondary without sixth form","- secondary schools without a sixth form ",IF(D17="Special","- special schools ",IF(D17="Alternative provision","- alternative provision schools ",IF(D17="All-through","- all-through schools ",IF(D17="Nursery","- nursery schools ","")))))))&Calcs!$I29&" (for average teacher cost only)") -> - primary schools outside London (for average teacher cost only)
G26: The school's data | I26: Rating against thresholds
C28: B. Spending as a percentage of total expenditure
C30: Spend on teaching staff as a percentage of total expenditure | E30: Guidance | G30: =IFERROR('Optional - input raw data'!F24/'Optional - input raw data'!F13,Calcs!$A$66) -> 49.3% | I30: =IF(OR(D$17="",D$18="",D$19="",D$20="",D$21="",G30=""),"", IF(G30<=Calcs!C9,Lowest10, IF(AND(G30>Calcs!C9,G30<=Calcs!D9),Lowest20, IF(AND(G30>Calcs!D9,G30<=Calcs!E9),Inline, IF(AND(G30>Calcs!E9,G30<=Calcs!G9),Middle20, IF(AND(G30>Calcs!G9,G30<=Calcs!H9),Inline, IF(AND(G30>Calcs!H9,G30<=Calcs!I9),Highest20, IF(G30>Calcs!I9,Highest10,"")))))))) -> Highest 20% of similar schools
C31: Spend on supply staff as a percentage of total expenditure | E31: Guidance | G31: =IFERROR(('Optional - input raw data'!F25+'Optional - input raw data'!F33+'Optional - input raw data'!F49)/'Optional - input raw data'!F13,Calcs!$A$66) -> 1.5% | I31: =IF(OR(D$17="",D$18="",D$19="",D$20="",G31=""),"", IF(G31<=Calcs!E10,Inline, IF(AND(G31>Calcs!E10,G31<=Calcs!G10),Middle20, IF(AND(G31>Calcs!G10,G31<=Calcs!H10),Inline, IF(AND(G31>Calcs!H10,G31<=Calcs!I10),Highest20, IF(G31>Calcs!I10,Highest10,"")))))) -> Broadly in line with similar schools
C32: Spend on education support staff as a percentage of total expenditure | E32: Guidance | G32: =IFERROR('Optional - input raw data'!F26/'Optional - input raw data'!F13,Calcs!$A$66) -> 21.7% | I32: =IF(OR(D$17="",D$18="",D$19="",D$20="",G32=""),"", IF(G32<=Calcs!E11,Inline, IF(AND(G32>Calcs!E11,G32<=Calcs!G11),Middle20, IF(AND(G32>Calcs!G11,G32<=Calcs!H11),Inline, IF(AND(G32>Calcs!H11,G32<=Calcs!I11),Highest20, IF(G32>Calcs!I11,Highest10,"")))))) -> Middle 20% of similar schools
C33: Spend on administrative and clerical staff as a percentage of total expenditure | E33: Guidance | G33: =IFERROR('Optional - input raw data'!F28/'Optional - input raw data'!F13,Calcs!$A$66) -> 4.2% | I33: =IF(OR(D$17="",D$18="",D$19="",D$20="",G33=""),"", IF(G33<=Calcs!H12,Inline, IF(AND(G33>Calcs!H12,G33<=Calcs!I12),Highest20, IF(G33>Calcs!I12,Highest10,"")))) -> Broadly in line with similar schools
C34: Spend on other staff costs as a percentage of total expenditure | E34: Guidance | G34: =IFERROR(SUM('Optional - input raw data'!F30,'Optional - input raw data'!F31,'Optional - input raw data'!F32,'Optional - input raw data'!F34)/'Optional - input raw data'!F13,Calcs!$A$66) -> 4.3% | I34: =IF(OR(D$17="",D$18="",D$19="",D$20="",G34=""),"", IF(G34<=Calcs!H13,Inline, IF(AND(G34>Calcs!H13,G34<=Calcs!I13),Highest20, IF(G34>Calcs!I13,Highest10,"")))) -> Broadly in line with similar schools
C35: Spend on premises (including staff costs) as a percentage of total expenditure | E35: Guidance | G35: =IFERROR(SUM('Optional - input raw data'!F27,'Optional - input raw data'!F35,'Optional - input raw data'!F36,'Optional - input raw data'!F37)/'Optional - input raw data'!F13,Calcs!$A$66) -> 4.4% | I35: =IF(OR(D$17="",D$18="",D$19="",D$20="",G35=""),"", IF(G35<=Calcs!H14,Inline, IF(AND(G35>Calcs!H14,G35<=Calcs!I14),Highest20, IF(G35>Calcs!I14,Highest10,"")))) -> Broadly in line with similar schools
C36: Spend on teaching resources as a percentage of total expenditure | E36: Guidance | G36: =IFERROR(SUM('Optional - input raw data'!F42,'Optional - input raw data'!F43,'Optional - input raw data'!F44)/'Optional - input raw data'!F13,Calcs!$A$66) -> 5.2% | I36: =IF(OR(D$17="",D$18="",D$19="",D$20="",G36=""),"", IF(G36<=Calcs!C15,Lowest10, IF(AND(G36>Calcs!C15,G36<=Calcs!D15),Lowest20, IF(AND(G36>Calcs!D15,G36<=Calcs!E15),Inline, IF(AND(G36>Calcs!E15,G36<=Calcs!G15),Middle20, IF(G36>Calcs!G15,Inline,"")))))) -> Broadly in line with similar schools
C37: Spend on energy as a percentage of total expenditure | E37: Guidance | G37: =IFERROR('Optional - input raw data'!F39/'Optional - input raw data'!F13,Calcs!$A$66) -> 0.8% | I37: =IF(OR(D$17="",D$18="",D$19="",D$20="",G37=""),"", IF(G37<=Calcs!H16,Inline, IF(AND(G37>Calcs!H16,G37<=Calcs!I16),Highest20, IF(G37>Calcs!I16,Highest10,"")))) -> Broadly in line with similar schools
C38: Other spending as a percentage of total expenditure (balancing line) | E38: Guidance | G38: =IFERROR(SUM('Optional - input raw data'!F29,'Optional - input raw data'!F38,'Optional - input raw data'!F40,'Optional - input raw data'!F41,'Optional - input raw data'!F45,'Optional - input raw data'!F46,'Optional - input raw data'!F47,'Optional - input raw data'!F48,'Optional - input raw data'!F50,'Optional - input raw data'!F51,'Optional - input raw data'!F52,'Optional - input raw data'!F53,'Optional - input raw data'!F54,'Optional - input raw data'!F55)/'Optional - input raw data'!F13,Calcs!$A$66) -> 8.6% | I38: =IF(OR(D$17="",D$18="",D$19="",D$20="",G38=""),"","N/A") -> N/A
G39: =IF(OR(ROUND(SUM(G30:G38),3)=100%,SUM(G30:G38)=0),"","Section must sum to 100%") -> 
C40: C. Reserves / balances as a percentage of total income
C42: In-year balance as a percentage of total income | E42: Guidance | G42: =IFERROR(('Optional - input raw data'!F14-'Optional - input raw data'!F13)/'Optional - input raw data'!F14,Calcs!$A$66) -> 2.4% | I42: =IF(OR(D$17="",D$18="",D$19="",D$20="",G42=""),"", IF(G42<=-0.05,High, IF(AND(G42>-0.05,G42<0),Medium, IF(G42>=0,Low,"")))) -> Low risk
C43: Revenue reserve as a percentage of total income | E43: Guidance | G43: =IFERROR('Optional - input raw data'!F15/'Optional - input raw data'!F14,Calcs!$A$66) -> 0.0% | I43: =IF(OR(D$17="",D$18="",D$19="",D$20="",G43=""),"", IF(G43<=-0.05,High, IF(AND(G43>-0.05,G43<0),Medium, IF(G43>=0,Low,"")))) -> Low risk
C45: D. School characteristics
C47: Average teacher cost (£) | E47: Guidance | G47: =IFERROR('Optional - input raw data'!F24/'Optional - input raw data'!F9,Calcs!$A$66) -> £56,650 | I47: =IF(OR(D$17="",D$18="",D$19="",D$20="",D$21="",G47=""),"", IF(G47<=Calcs!C21,Lowest10, IF(AND(G47>Calcs!C21,G47<=Calcs!D21),Lowest20, IF(AND(G47>Calcs!D21,G47<=Calcs!E21),Inline, IF(AND(G47>Calcs!E21,G47<=Calcs!G21),Middle20, IF(AND(G47>Calcs!G21,G47<=Calcs!H21),Inline, IF(AND(G47>Calcs!H21,G47<=Calcs!I21),Highest20, IF(G47>Calcs!I21,Highest10,"")))))))) -> Highest 20% of similar schools
C48: Senior leaders as a percentage of workforce | E48: Guidance | G48: =IFERROR('Optional - input raw data'!F10/'Optional - input raw data'!F11,Calcs!$A$66) -> 8.9% | I48: =IF(OR(D$17="",D$18="",D$19="",D$20="",G48=""),"", IF(G48<=Calcs!E17,Inline, IF(AND(G48>Calcs!E17,G48<=Calcs!G17),Middle20, IF(AND(G48>Calcs!G17,G48<=Calcs!H17),Inline, IF(AND(G48>Calcs!H17,G48<=Calcs!I17),Highest20, IF(G48>Calcs!I17,Highest10,"")))))) -> Broadly in line with similar schools
C49: Pupil to teacher ratio | E49: Guidance | G49: =IFERROR(F11/'Optional - input raw data'!F12,Calcs!$A$66) ->  | I49: =IF(OR(D$17="",D$18="",D$19="",D$20="",G49=""),"", IF(G49<=Calcs!C18,Lowest10, IF(AND(G49>Calcs!C18,G49<=Calcs!D18),Lowest20, IF(AND(G49>Calcs!D18,G49<=Calcs!E18),Inline, IF(AND(G49>Calcs!E18,G49<=Calcs!G18),Middle20, IF(AND(G49>Calcs!G18,G49<=Calcs!H18),Inline, IF(AND(G49>Calcs!H18,G49<=Calcs!I18),Highest20, IF(G49>Calcs!I18,Highest10,"")))))))) -> 
C50: Pupil to adult ratio | E50: Guidance | G50: =IFERROR(D19/'Optional - input raw data'!F11,Calcs!$A$66) -> 8.3 | I50: =IF(OR(D$17="",D$18="",D$19="",D$20="",G50=""),"", IF(G50<=Calcs!C19,Lowest10, IF(AND(G50>Calcs!C19,G50<=Calcs!D19),Lowest20, IF(AND(G50>Calcs!D19,G50<=Calcs!E19),Inline, IF(AND(G50>Calcs!E19,G50<=Calcs!G19),Middle20, IF(AND(G50>Calcs!G19,G50<=Calcs!H19),Inline, IF(AND(G50>Calcs!H19,G50<=Calcs!I19),Highest20, IF(G50>Calcs!I19,Highest10,"")))))))) -> Middle 20% of similar schools
C51: Teacher contact ratio (less than 1.0) | E51: Guidance | G51: =IFERROR(IF(D17=Calcs!$A$62,('Optional - input raw data'!F22/'Optional - input raw data'!F9),IF(OR(D17=Calcs!$A$63,D17=Calcs!$A$64,D17=Calcs!$A$65),('Optional - input raw data'!F19/('Optional - input raw data'!F18*'Optional - input raw data'!F9)),Calcs!$A$66)),Calcs!$A$66) -> 0.838 | I51: =IF(OR(D$17="",D$18="",D$19="",D$20="",G51=""),"", IF(G51<=0.7,Muchlower, IF(AND(G51>0.7,G51<=0.74),Lower, IF(AND(G51>0.74,G51<=0.8),Inline2, IF(AND(G51>0.8,G51<=0.82),Higher, IF(G51>0.82,Muchhigher,"")))))) -> Much higher than recommended
C52: Predicted percentage pupil number change in 3-5 years | E52: Guidance | I52: =IF(OR(D$17="",D$18="",D$19="",D$20="",G52=""),"", IF(G52<=-0.1,High, IF(AND(G52>-0.1,G52<=-0.02),Medium, IF(G52>=-0.02,Low,"")))) -> 
C53: Average class size | E53: Guidance | G53: 30.0 | I53: =IF(OR(D$17="",D$18="",D$19="",D$20="",G53=""),"", IF(G53<=Calcs!C20,Lowest10, IF(AND(G53>Calcs!C20,G53<=Calcs!D20),Lowest20, IF(AND(G53>Calcs!D20,G53<=Calcs!E20),Inline, IF(AND(G53>Calcs!E20,G53<=Calcs!G20),Middle20, IF(AND(G53>Calcs!G20,G53<=Calcs!H20),Inline, IF(AND(G53>Calcs!H20,G53<=Calcs!I20),Highest20, IF(G53>Calcs!I20,Highest10,"")))))))) -> Highest 10% of similar schools
C55: E. Outcomes
C57: Ofsted rating | E57: Guidance | G57: RI | I57: =IF(OR(D$17="",D$18="",D$19="",D$20="",G57=""),"",INDIRECT(G57)) -> Requires Improvement
C58: Progress 8 score | E58: Guidance | I58: =IF(OR(D$17="",D$18="",D$19="",D$20="",G58=""),"", IF(G58>=0.5,Wellabove, IF(AND(G58>=0,G58<0.5),Average, IF(AND(G58>=-0.5,G58<0),Below, IF(G58<-0.5,Wellbelow,""))))) -> 
C59: Progress score in reading | E59: Guidance | I59: =IF(OR(D$17="",D$18="",D$19="",D$20="",G59=""),"", IF(G59>=3.2,Wellabove, IF(AND(G59>=0,G59<3.2),Average, IF(AND(G59>=-2.7,G59<0),Below, IF(G59<-2.7,Wellbelow,""))))) -> 
C60: Progress score in writing | E60: Guidance | I60: =IF(OR(D$17="",D$18="",D$19="",D$20="",G60=""),"", IF(G60>=2.7,Wellabove, IF(AND(G60>=0,G60<2.7),Average, IF(AND(G60>=-2.6,G60<0),Below, IF(G60<-2.6,Wellbelow,""))))) -> 
C61: Progress score in maths | E61: Guidance | I61: =IF(OR(D$17="",D$18="",D$19="",D$20="",G61=""),"", IF(G61>=3.2,Wellabove, IF(AND(G61>=0,G61<3.2),Average, IF(AND(G61>=-3.1,G61<0),Below, IF(G61<-3.1,Wellbelow,""))))) -> 
C63: F: Optional commentary
C65: B) Although teaching staff spending is higher than other schools, all other spending is rag-rated green. In future, any changes in teaching staff need to be considered in the context of the higher than average teaching staff costs. Recent appointments to class teacher positions have been NQTs. E) The school has a Rapid Improvement Plan which is currently being implemented with a view to improving the school's offering and, consequently OFSTED rating and attainment. Action plans are in place to improve outcomes across the curriculum. Internal data was indicating that results across each Key Stage were on track to be at or above age-related expectations at the end of 2019-20. C) As a result of our Ofsted rating, the emphasis is on Quality First Teaching wherever possible so the teacher contact ratio is therefore higher. Additional staff are employed who do not have a class teaching commitment: SENCO (0.5), floating teacher to cover PPA and Intervention (0.6) and the DHT who does not have a class commitment but does cover SLT release and some PPA. All teaching staff receive their time allocation for PPA. Teachers workload has been decreased through changes to the Marking Policy; the purchase of Maths No Problem, meaning that Maths planning is minimal and an emphasis on peer and self-assessment.

Sheet Optional - input raw data
C3: Raw data form
F4: 1
C5: This form can be used to input raw spend and characteristics information. If used, the information in this table will be used to calculate the percentages and ratios required in the dashboard. Alternatively, click here to input the percentages and ratios directly into the dashboard.
C6: Schools should use the most up to date information available to them, and not rely on lagged published data. All of the data should refer to the same financial year.
C9: Full time equivalent number of teachers (classroom and leadership) | F9: 16.7
C10: Full time equivalent of teachers in the leadership group | F10: 4.5
C11: Full time equivalent of total school workforce | F11: 50.4
C13: Total expenditure | F13: £1,919,552
C14: Total income | F14: £1,967,396
C15: Revenue balances (committed and uncommitted)
C17: For secondary and all-through schools:
C18: Teaching periods in the timetable cycle
C19: Total lessons taught by all teachers in the timetable cycle
F20: =IFERROR(IF((F19/(F18*F9))<0.5,"Resulting teacher contact ratio is low. Total lessons taught may be incorrectly calculated as too low",IF((F19/(F18*F9))>1,"Resulting teacher contact ratio is greater than 1. Total lessons taught is too high","")),"") -> 
C21: For primary schools:
C22: Total number of classes | F22: 14
F23: =IF(F22="","",IFERROR(IF((F22/F9)<0.5,"Resulting teacher contact ratio is low. Total number of classes may be too low",IF((F22/F9)>1,"Resulting teacher contact ratio is greater than 1. Total number of classes is too high","")),"")) -> 
C24: E01 | D24: Teaching staff | F24: £946,050
C25: E02 | D25: Supply teaching staff | F25: £0
C26: E03 | D26: Education support staff | F26: £415,656
C27: E04 | D27: Premises staff | F27: £63,202
C28: E05 | D28: Administrative and clerical staff | F28: £80,921
C29: E06 | D29: Catering staff | F29: £0
C30: E07 | D30: Cost of other staff | F30: £67,855
C31: E08 | D31: Indirect employee expenses | F31: £6,934
C32: E09 | D32: Staff development and training | F32: £3,197
C33: E10 | D33: Supply teacher insurance | F33: £17,171
C34: E11 | D34: Staff-related insurance | F34: £5,321
C35: E12 | D35: Building maintenance and improvement | F35: £11,723
C36: E13 | D36: Grounds maintenance and improvement | F36: £3,027
C37: E14 | D37: Cleaning and caretaking | F37: £6,363
C38: E15 | D38: Water and sewerage | F38: £4,532
C39: E16 | D39: Energy | F39: £15,649
C40: E17 | D40: Rates | F40: £36,289
C41: E18 | D41: Other occupation costs | F41: £4,150
C42: E19 | D42: Teaching resources | F42: £85,030
C43: E20 | D43: ICT teaching resources | F43: £14,514
C44: E21 | D44: Examination fees | F44: £0
C45: E22 | D45: Administrative supplies | F45: £2,946
C46: E23 | D46: Other insurance premiums | F46: £12,966
C47: E24 | D47: Special facilities | F47: £16,670
C48: E25 | D48: Catering supplies | F48: £74,076
C49: E26 | D49: Agency supply teaching staff | F49: £11,272
C50: E27 | D50: Bought-in professional services - curriculum | F50: £1,348
C51: E28 | D51: Bought-in professional services - other | F51: £12,690
C52: E29 | D52: Loan interest | F52: £0
C53: E30 | D53: Direct revenue financing | F53: £0
C54: E31 | D54: Community-focused school staff | F54: £0
C55: E32 | D55: Community-focused school costs | F55: £0

Sheet RAG rating data for your school
B2: Your school has been identified as: | H2: The RAG ratings have been calculated using maintained school and academy 2017 to 18 data. The majority of metrics in the dashboard are percentages and ratios which at a national level don't change significantly year on year, so they still provide a fair and useful comparison with your up to date data. However, to reflect pay awards and pension contributions changes, the underlying data on teaching staff spending and average teacher costs have been adjusted. The RAG ratings for spend on teaching staff as a percentage of total expenditure and average teacher costs include uplifts relating to the year you have selected. 2017-18 : no uplift 2018-19 : 1.4% uplift to reflect the September 2018 pay award 2019-20 : 7.5% to also reflect the September 2019 pay award and September 2019 pensions contributions changes 2019/20 : 11.2% to reflect the September 2019 pay award and September 2019 pensions contributions changes
B3: =IF(Dashboard!D15="","","- "& INDEX(Calcs!L:L,MATCH(Dashboard!D15,Calcs!A:A,0))) -> - a primary school
B4: =IF(Dashboard!D15="","","- "& INDEX(Calcs!I:I,MATCH(Dashboard!D15,Calcs!A:A,0))) -> - outside London
B5: =IF(Dashboard!D15="","", IF(OR($B$3="- an alternative provision school",$B$3="- a special school",$B$3="- an all-through school",$B$3="- a nursery school"),"", "- a "&INDEX(Calcs!J:J,MATCH(Dashboard!D15,Calcs!A:A,0))&" school because it has "&INDEX(Calcs!M:M,MATCH(Dashboard!D15,Calcs!A:A,0)))) -> - a large school because it has more than 385 pupils
B6: =IF(Dashboard!D15="","", IF(OR($B$3="- an alternative provision school",$B$3="- a special school",$B$3="- an all-through school",$B$3="- a nursery school"),"", "- a school with "&INDEX(Calcs!K:K,MATCH(Dashboard!D15,Calcs!A:A,0))&" because "&INDEX(Calcs!N:N,MATCH(Dashboard!D15,Calcs!A:A,0))&" are eligible")) -> - a school with high levels of FSM because more than 18% of pupils are eligible
B8: =IF(Dashboard!D21="","","You have identified your data as "&INDEX(Calcs!O:O,MATCH(Dashboard!D15,Calcs!A:A,0))) -> You have identified your data as 2019-20 (financial year)
B15: The thresholds for the RAG ratings are based on these characteristics and are:
B17: B. Your spending as a percentage of expenditure
D19: Red rating | G19: Amber rating | L19: Light green rating | Q19: Dark green rating
B21: Spend on teaching staff as a percentage of total expenditure | D21: Less than or equal to | E21: =IF(Dashboard!D15="","",INDEX(INDIRECT(INDEX(Calcs!$D:$D,MATCH(Dashboard!D15,Calcs!$A:$A,0))),1,1)) -> 37.0% | G21: Between | H21: =IF(Dashboard!D15="","",INDEX(INDIRECT(INDEX(Calcs!$D:$D,MATCH(Dashboard!D15,Calcs!$A:$A,0))),1,1)) -> 37.0% | I21: and | J21: =IF(Dashboard!D15="","",INDEX(INDIRECT(INDEX(Calcs!$D:$D,MATCH(Dashboard!D15,Calcs!$A:$A,0))),1,2)) -> 39.5% | L21: Between | M21: =IF(Dashboard!D15="","",INDEX(INDIRECT(INDEX(Calcs!$D:$D,MATCH(Dashboard!D15,Calcs!$A:$A,0))),1,2)) -> 39.5% | N21: and | O21: =IF(Dashboard!D15="","",INDEX(INDIRECT(INDEX(Calcs!$D:$D,MATCH(Dashboard!D15,Calcs!$A:$A,0))),1,3)) -> 43.0% | Q21: Between | R21: =IF(Dashboard!D15="","",INDEX(INDIRECT(INDEX(Calcs!$D:$D,MATCH(Dashboard!D15,Calcs!$A:$A,0))),1,3)) -> 43.0% | S21: and | T21: =IF(Dashboard!D15="","",INDEX(INDIRECT(INDEX(Calcs!$D:$D,MATCH(Dashboard!D15,Calcs!$A:$A,0))),1,5)) -> 45.5%
D22: Or more than | E22: =IF(Dashboard!D15="","",INDEX(INDIRECT(INDEX(Calcs!$D:$D,MATCH(Dashboard!D15,Calcs!$A:$A,0))),1,7)) -> 51.0% | G22: Or between | H22: =IF(Dashboard!D15="","",INDEX(INDIRECT(INDEX(Calcs!$D:$D,MATCH(Dashboard!D15,Calcs!$A:$A,0))),1,6)) -> 48.5% | I22: and | J22: =IF(Dashboard!D15="","",INDEX(INDIRECT(INDEX(Calcs!$D:$D,MATCH(Dashboard!D15,Calcs!$A:$A,0))),1,7)) -> 51.0% | L22: Or between | M22: =IF(Dashboard!D15="","",INDEX(INDIRECT(INDEX(Calcs!$D:$D,MATCH(Dashboard!D15,Calcs!$A:$A,0))),1,5)) -> 45.5% | N22: and | O22: =IF(Dashboard!D15="","",INDEX(INDIRECT(INDEX(Calcs!$D:$D,MATCH(Dashboard!D15,Calcs!$A:$A,0))),1,6)) -> 48.5%
B24: Spend on supply staff as a percentage of total expenditure | D24: More than | E24: =IF(Dashboard!D15="","",INDEX(INDIRECT(INDEX(Calcs!$D:$D,MATCH(Dashboard!D15,Calcs!$A:$A,0))),2,7)) -> 6.0% | G24: Between | H24: =IF(Dashboard!D15="","",INDEX(INDIRECT(INDEX(Calcs!$D:$D,MATCH(Dashboard!D15,Calcs!$A:$A,0))),2,6)) -> 4.5% | I24: and | J24: =IF(Dashboard!D15="","",INDEX(INDIRECT(INDEX(Calcs!$D:$D,MATCH(Dashboard!D15,Calcs!$A:$A,0))),2,7)) -> 6.0% | L24: Between | M24: =IF(Dashboard!D15="","",INDEX(INDIRECT(INDEX(Calcs!$D:$D,MATCH(Dashboard!D15,Calcs!$A:$A,0))),2,5)) -> 3.0% | N24: and | O24: =IF(Dashboard!D15="","",INDEX(INDIRECT(INDEX(Calcs!$D:$D,MATCH(Dashboard!D15,Calcs!$A:$A,0))),2,6)) -> 4.5% | Q24: Between | R24: =IF(Dashboard!D15="","",INDEX(INDIRECT(INDEX(Calcs!$D:$D,MATCH(Dashboard!D15,Calcs!$A:$A,0))),2,3)) -> 2.0% | S24: and | T24: =IF(Dashboard!D15="","",INDEX(INDIRECT(INDEX(Calcs!$D:$D,MATCH(Dashboard!D15,Calcs!$A:$A,0))),2,5)) -> 3.0%
L25: Or less than or equal to | M25: =IF(Dashboard!D15="","",INDEX(INDIRECT(INDEX(Calcs!$D:$D,MATCH(Dashboard!D15,Calcs!$A:$A,0))),2,3)) -> 2.0%
B27: Spend on education support staff as a percentage of total expenditure | D27: More than | E27: =IF(Dashboard!D15="","",INDEX(INDIRECT(INDEX(Calcs!$D:$D,MATCH(Dashboard!D15,Calcs!$A:$A,0))),3,7)) -> 26.5% | G27: Between | H27: =IF(Dashboard!D15="","",INDEX(INDIRECT(INDEX(Calcs!$D:$D,MATCH(Dashboard!D15,Calcs!$A:$A,0))),3,6)) -> 25.0% | I27: and | J27: =IF(Dashboard!D15="","",INDEX(INDIRECT(INDEX(Calcs!$D:$D,MATCH(Dashboard!D15,Calcs!$A:$A,0))),3,7)) -> 26.5% | L27: Between | M27: =IF(Dashboard!D15="","",INDEX(INDIRECT(INDEX(Calcs!$D:$D,MATCH(Dashboard!D15,Calcs!$A:$A,0))),3,5)) -> 22.0% | N27: and | O27: =IF(Dashboard!D15="","",INDEX(INDIRECT(INDEX(Calcs!$D:$D,MATCH(Dashboard!D15,Calcs!$A:$A,0))),3,6)) -> 25.0% | Q27: Between | R27: =IF(Dashboard!D15="","",INDEX(INDIRECT(INDEX(Calcs!$D:$D,MATCH(Dashboard!D15,Calcs!$A:$A,0))),3,3)) -> 19.5% | S27: and | T27: =IF(Dashboard!D15="","",INDEX(INDIRECT(INDEX(Calcs!$D:$D,MATCH(Dashboard!D15,Calcs!$A:$A,0))),3,5)) -> 22.0%
L28: Or less than or equal to | M28: =IF(Dashboard!D15="","",INDEX(INDIRECT(INDEX(Calcs!$D:$D,MATCH(Dashboard!D15,Calcs!$A:$A,0))),3,3)) -> 19.5%
B30: Spend on administrative and clerical staff as a percentage of total expenditure | D30: More than | E30: =IF(Dashboard!D15="","",INDEX(INDIRECT(INDEX(Calcs!$D:$D,MATCH(Dashboard!D15,Calcs!$A:$A,0))),4,7)) -> 7.5% | G30: Between | H30: =IF(Dashboard!D15="","",INDEX(INDIRECT(INDEX(Calcs!$D:$D,MATCH(Dashboard!D15,Calcs!$A:$A,0))),4,6)) -> 6.0% | I30: and | J30: =IF(Dashboard!D15="","",INDEX(INDIRECT(INDEX(Calcs!$D:$D,MATCH(Dashboard!D15,Calcs!$A:$A,0))),4,7)) -> 7.5% | L30: Less than or equal to | M30: =IF(Dashboard!D15="","",INDEX(INDIRECT(INDEX(Calcs!$D:$D,MATCH(Dashboard!D15,Calcs!$A:$A,0))),4,6)) -> 6.0%
B33: Spend on other staff costs as a percentage of total expenditure | D33: More than | E33: =IF(Dashboard!D15="","",INDEX(INDIRECT(INDEX(Calcs!$D:$D,MATCH(Dashboard!D15,Calcs!$A:$A,0))),5,7)) -> 6.0% | G33: Between | H33: =IF(Dashboard!D15="","",INDEX(INDIRECT(INDEX(Calcs!$D:$D,MATCH(Dashboard!D15,Calcs!$A:$A,0))),5,6)) -> 4.5% | I33: and | J33: =IF(Dashboard!D15="","",INDEX(INDIRECT(INDEX(Calcs!$D:$D,MATCH(Dashboard!D15,Calcs!$A:$A,0))),5,7)) -> 6.0% | L33: Less than or equal to | M33: =IF(Dashboard!D15="","",INDEX(INDIRECT(INDEX(Calcs!$D:$D,MATCH(Dashboard!D15,Calcs!$A:$A,0))),5,6)) -> 4.5%
B36: Spend on premises (including staff costs) as a percentage of total expenditure | D36: More than | E36: =IF(Dashboard!D15="","",INDEX(INDIRECT(INDEX(Calcs!$D:$D,MATCH(Dashboard!D15,Calcs!$A:$A,0))),6,7)) -> 8.0% | G36: Between | H36: =IF(Dashboard!D15="","",INDEX(INDIRECT(INDEX(Calcs!$D:$D,MATCH(Dashboard!D15,Calcs!$A:$A,0))),6,6)) -> 7.0% | I36: and | J36: =IF(Dashboard!D15="","",INDEX(INDIRECT(INDEX(Calcs!$D:$D,MATCH(Dashboard!D15,Calcs!$A:$A,0))),6,7)) -> 8.0% | L36: Less than or equal to | M36: =IF(Dashboard!D15="","",INDEX(INDIRECT(INDEX(Calcs!$D:$D,MATCH(Dashboard!D15,Calcs!$A:$A,0))),6,6)) -> 7.0%
B39: Spend on teaching resources as a percentage of total expenditure | D39: Less than or equal to | E39: =IF(Dashboard!D15="","",INDEX(INDIRECT(INDEX(Calcs!$D:$D,MATCH(Dashboard!D15,Calcs!$A:$A,0))),7,1)) -> 2.5% | G39: Between | H39: =IF(Dashboard!D15="","",INDEX(INDIRECT(INDEX(Calcs!$D:$D,MATCH(Dashboard!D15,Calcs!$A:$A,0))),7,1)) -> 2.5% | I39: and | J39: =IF(Dashboard!D15="","",INDEX(INDIRECT(INDEX(Calcs!$D:$D,MATCH(Dashboard!D15,Calcs!$A:$A,0))),7,2)) -> 3.0% | L39: Between | M39: =IF(Dashboard!D15="","",INDEX(INDIRECT(INDEX(Calcs!$D:$D,MATCH(Dashboard!D15,Calcs!$A:$A,0))),7,2)) -> 3.0% | N39: and | O39: =IF(Dashboard!D15="","",INDEX(INDIRECT(INDEX(Calcs!$D:$D,MATCH(Dashboard!D15,Calcs!$A:$A,0))),7,3)) -> 4.0% | Q39: Between | R39: =IF(Dashboard!D15="","",INDEX(INDIRECT(INDEX(Calcs!$D:$D,MATCH(Dashboard!D15,Calcs!$A:$A,0))),7,3)) -> 4.0% | S39: and | T39: =IF(Dashboard!D15="","",INDEX(INDIRECT(INDEX(Calcs!$D:$D,MATCH(Dashboard!D15,Calcs!$A:$A,0))),7,5)) -> 5.0%
L40: Or more than | M40: =IF(Dashboard!D15="","",INDEX(INDIRECT(INDEX(Calcs!$D:$D,MATCH(Dashboard!D15,Calcs!$A:$A,0))),7,5)) -> 5.0%
B42: Spend on energy as a percentage of total expenditure | D42: More than | E42: =IF(Dashboard!D15="","",INDEX(INDIRECT(INDEX(Calcs!$D:$D,MATCH(Dashboard!D15,Calcs!$A:$A,0))),8,7)) -> 2.0% | G42: Between | H42: =IF(Dashboard!D15="","",INDEX(INDIRECT(INDEX(Calcs!$D:$D,MATCH(Dashboard!D15,Calcs!$A:$A,0))),8,6)) -> 1.5% | I42: and | J42: =IF(Dashboard!D15="","",INDEX(INDIRECT(INDEX(Calcs!$D:$D,MATCH(Dashboard!D15,Calcs!$A:$A,0))),8,7)) -> 2.0% | L42: Less than or equal to | M42: =IF(Dashboard!D15="","",INDEX(INDIRECT(INDEX(Calcs!$D:$D,MATCH(Dashboard!D15,Calcs!$A:$A,0))),8,6)) -> 1.5%
B46: C. Reserves / balances as a percentage of total income
D48: Red rating | G48: Amber rating | L48: Light green rating | Q48: Dark green rating
B50: In-year balance as a percentage of total income | D50: Less than or equal to | E50: =IF(Dashboard!D15="","",-0.05) -> -5.0% | G50: Between | H50: =IF(Dashboard!D15="","",-0.05) -> -5.0% | I50: and | J50: =IF(Dashboard!D15="","",0) -> 0.0% | L50: More than or equal to | M50: =IF(Dashboard!D15="","",0) -> 0.0%
B53: Revenue reserve as a percentage of total income | D53: Less than or equal to | E53: =IF(Dashboard!D15="","",-0.05) -> -5.0% | G53: Between | H53: =IF(Dashboard!D15="","",-0.05) -> -5.0% | I53: and | J53: =IF(Dashboard!D15="","",0) -> 0.0% | L53: More than or equal to | M53: =IF(Dashboard!D15="","",0) -> 0.0%
B57: D. School characteristics
D59: Red rating | G59: Amber rating | L59: Light green rating | Q59: Dark green rating
B61: Average teacher cost (£) | D61: Less than or equal to | E61: =IF(Dashboard!D15="","",INDEX(INDIRECT(INDEX(Calcs!$D:$D,MATCH(Dashboard!D15,Calcs!$A:$A,0))),13,1)) -> £42,500 | G61: Between | H61: =IF(Dashboard!D15="","",INDEX(INDIRECT(INDEX(Calcs!$D:$D,MATCH(Dashboard!D15,Calcs!$A:$A,0))),13,1)) -> £42,500 | I61: and | J61: =IF(Dashboard!D15="","",INDEX(INDIRECT(INDEX(Calcs!$D:$D,MATCH(Dashboard!D15,Calcs!$A:$A,0))),13,2)) -> £45,500 | L61: Between | M61: =IF(Dashboard!D15="","",INDEX(INDIRECT(INDEX(Calcs!$D:$D,MATCH(Dashboard!D15,Calcs!$A:$A,0))),13,2)) -> £45,500 | N61: and | O61: =IF(Dashboard!D15="","",INDEX(INDIRECT(INDEX(Calcs!$D:$D,MATCH(Dashboard!D15,Calcs!$A:$A,0))),13,3)) -> £48,500 | Q61: Between | R61: =IF(Dashboard!D15="","",INDEX(INDIRECT(INDEX(Calcs!$D:$D,MATCH(Dashboard!D15,Calcs!$A:$A,0))),13,3)) -> £48,500 | S61: and | T61: =IF(Dashboard!D15="","",INDEX(INDIRECT(INDEX(Calcs!$D:$D,MATCH(Dashboard!D15,Calcs!$A:$A,0))),13,5)) -> £51,500
D62: Or more than | E62: =IF(Dashboard!D15="","",INDEX(INDIRECT(INDEX(Calcs!$D:$D,MATCH(Dashboard!D15,Calcs!$A:$A,0))),13,7)) -> £58,000 | G62: Or between | H62: =IF(Dashboard!D15="","",INDEX(INDIRECT(INDEX(Calcs!$D:$D,MATCH(Dashboard!D15,Calcs!$A:$A,0))),13,6)) -> £55,000 | I62: and | J62: =IF(Dashboard!D15="","",INDEX(INDIRECT(INDEX(Calcs!$D:$D,MATCH(Dashboard!D15,Calcs!$A:$A,0))),13,7)) -> £58,000 | L62: Or between | M62: =IF(Dashboard!D15="","",INDEX(INDIRECT(INDEX(Calcs!$D:$D,MATCH(Dashboard!D15,Calcs!$A:$A,0))),13,5)) -> £51,500 | N62: and | O62: =IF(Dashboard!D15="","",INDEX(INDIRECT(INDEX(Calcs!$D:$D,MATCH(Dashboard!D15,Calcs!$A:$A,0))),13,6)) -> £55,000
B64: Senior leaders as a percentage of workforce | D64: More than | E64: =IF(Dashboard!D15="","",INDEX(INDIRECT(INDEX(Calcs!$D:$D,MATCH(Dashboard!D15,Calcs!$A:$A,0))),9,7)) -> 10.5% | G64: Between | H64: =IF(Dashboard!D15="","",INDEX(INDIRECT(INDEX(Calcs!$D:$D,MATCH(Dashboard!D15,Calcs!$A:$A,0))),9,6)) -> 9.0% | I64: and | J64: =IF(Dashboard!D15="","",INDEX(INDIRECT(INDEX(Calcs!$D:$D,MATCH(Dashboard!D15,Calcs!$A:$A,0))),9,7)) -> 10.5% | L64: Between | M64: =IF(Dashboard!D15="","",INDEX(INDIRECT(INDEX(Calcs!$D:$D,MATCH(Dashboard!D15,Calcs!$A:$A,0))),9,5)) -> 7.5% | N64: and | O64: =IF(Dashboard!D15="","",INDEX(INDIRECT(INDEX(Calcs!$D:$D,MATCH(Dashboard!D15,Calcs!$A:$A,0))),9,6)) -> 9.0% | Q64: Between | R64: =IF(Dashboard!D15="","",INDEX(INDIRECT(INDEX(Calcs!$D:$D,MATCH(Dashboard!D15,Calcs!$A:$A,0))),9,3)) -> 6.5% | S64: and | T64: =IF(Dashboard!D15="","",INDEX(INDIRECT(INDEX(Calcs!$D:$D,MATCH(Dashboard!D15,Calcs!$A:$A,0))),9,5)) -> 7.5%
L65: Or less than or equal to | M65: =IF(Dashboard!D15="","",INDEX(INDIRECT(INDEX(Calcs!$D:$D,MATCH(Dashboard!D15,Calcs!$A:$A,0))),9,3)) -> 6.5%
B67: Pupil to teacher ratio | D67: Less than or equal to | E67: =IF(Dashboard!D15="","",INDEX(INDIRECT(INDEX(Calcs!$D:$D,MATCH(Dashboard!D15,Calcs!$A:$A,0))),10,1)) -> 17.0 | G67: Between | H67: =IF(Dashboard!D15="","",INDEX(INDIRECT(INDEX(Calcs!$D:$D,MATCH(Dashboard!D15,Calcs!$A:$A,0))),10,1)) -> 17.0 | I67: and | J67: =IF(Dashboard!D15="","",INDEX(INDIRECT(INDEX(Calcs!$D:$D,MATCH(Dashboard!D15,Calcs!$A:$A,0))),10,2)) -> 18.0 | L67: Between | M67: =IF(Dashboard!D15="","",INDEX(INDIRECT(INDEX(Calcs!$D:$D,MATCH(Dashboard!D15,Calcs!$A:$A,0))),10,2)) -> 18.0 | N67: and | O67: =IF(Dashboard!D15="","",INDEX(INDIRECT(INDEX(Calcs!$D:$D,MATCH(Dashboard!D15,Calcs!$A:$A,0))),10,3)) -> 20.0 | Q67: Between | R67: =IF(Dashboard!D15="","",INDEX(INDIRECT(INDEX(Calcs!$D:$D,MATCH(Dashboard!D15,Calcs!$A:$A,0))),10,3)) -> 20.0 | S67: and | T67: =IF(Dashboard!D15="","",INDEX(INDIRECT(INDEX(Calcs!$D:$D,MATCH(Dashboard!D15,Calcs!$A:$A,0))),10,5)) -> 21.0
D68: Or more than | E68: =IF(Dashboard!D15="","",INDEX(INDIRECT(INDEX(Calcs!$D:$D,MATCH(Dashboard!D15,Calcs!$A:$A,0))),10,7)) -> 24.5 | G68: Or between | H68: =IF(Dashboard!D15="","",INDEX(INDIRECT(INDEX(Calcs!$D:$D,MATCH(Dashboard!D15,Calcs!$A:$A,0))),10,6)) -> 23.0 | I68: and | J68: =IF(Dashboard!D15="","",INDEX(INDIRECT(INDEX(Calcs!$D:$D,MATCH(Dashboard!D15,Calcs!$A:$A,0))),10,7)) -> 24.5 | L68: Or between | M68: =IF(Dashboard!D15="","",INDEX(INDIRECT(INDEX(Calcs!$D:$D,MATCH(Dashboard!D15,Calcs!$A:$A,0))),10,5)) -> 21.0 | N68: and | O68: =IF(Dashboard!D15="","",INDEX(INDIRECT(INDEX(Calcs!$D:$D,MATCH(Dashboard!D15,Calcs!$A:$A,0))),10,6)) -> 23.0
B70: Pupil to adult ratio | D70: Less than or equal to | E70: =IF(Dashboard!D15="","",INDEX(INDIRECT(INDEX(Calcs!$D:$D,MATCH(Dashboard!D15,Calcs!$A:$A,0))),11,1)) -> 7.0 | G70: Between | H70: =IF(Dashboard!D15="","",INDEX(INDIRECT(INDEX(Calcs!$D:$D,MATCH(Dashboard!D15,Calcs!$A:$A,0))),11,1)) -> 7.0 | I70: and | J70: =IF(Dashboard!D15="","",INDEX(INDIRECT(INDEX(Calcs!$D:$D,MATCH(Dashboard!D15,Calcs!$A:$A,0))),11,2)) -> 7.5 | L70: Between | M70: =IF(Dashboard!D15="","",INDEX(INDIRECT(INDEX(Calcs!$D:$D,MATCH(Dashboard!D15,Calcs!$A:$A,0))),11,2)) -> 7.5 | N70: and | O70: =IF(Dashboard!D15="","",INDEX(INDIRECT(INDEX(Calcs!$D:$D,MATCH(Dashboard!D15,Calcs!$A:$A,0))),11,3)) -> 8.0 | Q70: Between | R70: =IF(Dashboard!D15="","",INDEX(INDIRECT(INDEX(Calcs!$D:$D,MATCH(Dashboard!D15,Calcs!$A:$A,0))),11,3)) -> 8.0 | S70: and | T70: =IF(Dashboard!D15="","",INDEX(INDIRECT(INDEX(Calcs!$D:$D,MATCH(Dashboard!D15,Calcs!$A:$A,0))),11,5)) -> 9.0
D71: Or more than | E71: =IF(Dashboard!D15="","",INDEX(INDIRECT(INDEX(Calcs!$D:$D,MATCH(Dashboard!D15,Calcs!$A:$A,0))),11,7)) -> 10.5 | G71: Or between | H71: =IF(Dashboard!D15="","",INDEX(INDIRECT(INDEX(Calcs!$D:$D,MATCH(Dashboard!D15,Calcs!$A:$A,0))),11,6)) -> 9.5 | I71: and | J71: =IF(Dashboard!D15="","",INDEX(INDIRECT(INDEX(Calcs!$D:$D,MATCH(Dashboard!D15,Calcs!$A:$A,0))),11,7)) -> 10.5 | L71: Or between | M71: =IF(Dashboard!D15="","",INDEX(INDIRECT(INDEX(Calcs!$D:$D,MATCH(Dashboard!D15,Calcs!$A:$A,0))),11,5)) -> 9.0 | N71: and | O71: =IF(Dashboard!D15="","",INDEX(INDIRECT(INDEX(Calcs!$D:$D,MATCH(Dashboard!D15,Calcs!$A:$A,0))),11,6)) -> 9.5
B73: =IF(OR($B$3="- an alternative provision school",$B$3="- a special school",$B$3="- a nursery school"),"","Teacher contact ratio (less than 1.0)") -> Teacher contact ratio (less than 1.0) | D73: =IF(B73="","","Less than or equal to") -> Less than or equal to | E73: =IF(OR($B$3="- an alternative provision school",$B$3="- a special school",$B$3="- a nursery school",Dashboard!D15=""),"",0.7) -> 0.70 | G73: =IF(B73="","","Between") -> Between | H73: =IF(OR($B$3="- an alternative provision school",$B$3="- a special school",$B$3="- a nursery school",Dashboard!D15=""),"",0.7) -> 0.70 | I73: =IF(B73="","","and") -> and | J73: =IF(OR($B$3="- an alternative provision school",$B$3="- a special school",$B$3="- a nursery school",Dashboard!D15=""),"",0.74) -> 0.74 | L73: =IF(B73="","","Between") -> Between | M73: =IF(OR($B$3="- an alternative provision school",$B$3="- a special school",$B$3="- a nursery school",Dashboard!D15=""),"",0.74) -> 0.74 | N73: =IF(G73="","","and") -> and | O73: =IF(OR($B$3="- an alternative provision school",$B$3="- a special school",$B$3="- a nursery school",Dashboard!D15=""),"",0.8) -> 0.80
D74: =IF(B73="","","Or more than") -> Or more than | E74: =IF(OR($B$3="- an alternative provision school",$B$3="- a special school",$B$3="- a nursery school",Dashboard!D15=""),"",0.82) -> 0.82 | G74: =IF(B73="","","Or between") -> Or between | H74: =IF(OR($B$3="- an alternative provision school",$B$3="- a special school",$B$3="- a nursery school",Dashboard!D15=""),"",0.8) -> 0.80 | I74: =IF(B74="","","and") ->  | J74: =IF(OR($B$3="- an alternative provision school",$B$3="- a special school",$B$3="- a nursery school",Dashboard!D15=""),"",0.82) -> 0.82
B76: Predicted percentage pupil number change in 3-5 years | D76: Less than or equal to | E76: =IF(Dashboard!D15="","",-0.1) -> -10.0% | G76: Between | H76: =IF(Dashboard!D15="","",-0.1) -> -10.0% | I76: and | J76: =IF(Dashboard!D15="","",-0.02) -> -2.0% | L76: More than | M76: =IF(Dashboard!D15="","",-0.02) -> -2.0%
B79: =IF(OR($B$3="- an alternative provision school",$B$3="- a special school",$B$3="- a nursery school"),"","Average class size") -> Average class size | D79: =IF(B79="","","Less than or equal to") -> Less than or equal to | E79: =IF(Dashboard!D15="","",INDEX(INDIRECT(INDEX(Calcs!$D:$D,MATCH(Dashboard!D15,Calcs!$A:$A,0))),12,1)) -> 24.5 | G79: =IF(B79="","","Between") -> Between | H79: =IF(Dashboard!D15="","",INDEX(INDIRECT(INDEX(Calcs!$D:$D,MATCH(Dashboard!D15,Calcs!$A:$A,0))),12,1)) -> 24.5 | I79: =IF(B79="","","and") -> and | J79: =IF(Dashboard!D15="","",INDEX(INDIRECT(INDEX(Calcs!$D:$D,MATCH(Dashboard!D15,Calcs!$A:$A,0))),12,2)) -> 25.5 | L79: =IF(B79="","","Between") -> Between | M79: =IF(Dashboard!D15="","",INDEX(INDIRECT(INDEX(Calcs!$D:$D,MATCH(Dashboard!D15,Calcs!$A:$A,0))),12,2)) -> 25.5 | N79: =IF(B79="","","and") -> and | O79: =IF(Dashboard!D15="","",INDEX(INDIRECT(INDEX(Calcs!$D:$D,MATCH(Dashboard!D15,Calcs!$A:$A,0))),12,3)) -> 27.0 | Q79: =IF(B79="","","Between") -> Between | R79: =IF(Dashboard!D15="","",INDEX(INDIRECT(INDEX(Calcs!$D:$D,MATCH(Dashboard!D15,Calcs!$A:$A,0))),12,3)) -> 27.0 | S79: =IF(B79="","","and") -> and | T79: =IF(Dashboard!D15="","",INDEX(INDIRECT(INDEX(Calcs!$D:$D,MATCH(Dashboard!D15,Calcs!$A:$A,0))),12,5)) -> 28.0
D80: =IF(B79="","","Or more than") -> Or more than | E80: =IF(Dashboard!D15="","",INDEX(INDIRECT(INDEX(Calcs!$D:$D,MATCH(Dashboard!D15,Calcs!$A:$A,0))),12,7)) -> 29.5 | G80: =IF(B79="","","Or between") -> Or between | H80: =IF(Dashboard!D15="","",INDEX(INDIRECT(INDEX(Calcs!$D:$D,MATCH(Dashboard!D15,Calcs!$A:$A,0))),12,6)) -> 29.0 | I80: =IF(B79="","","and") -> and | J80: =IF(Dashboard!D15="","",INDEX(INDIRECT(INDEX(Calcs!$D:$D,MATCH(Dashboard!D15,Calcs!$A:$A,0))),12,7)) -> 29.5 | L80: =IF(B79="","","Or between") -> Or between | M80: =IF(Dashboard!D15="","",INDEX(INDIRECT(INDEX(Calcs!$D:$D,MATCH(Dashboard!D15,Calcs!$A:$A,0))),12,5)) -> 28.0 | N80: =IF(B79="","","and") -> and | O80: =IF(Dashboard!D15="","",INDEX(INDIRECT(INDEX(Calcs!$D:$D,MATCH(Dashboard!D15,Calcs!$A:$A,0))),12,6)) -> 29.0
B83: E. Outcomes
D85: Red rating | G85: Amber rating | L85: Light green rating | Q85: Dark green rating
B87: Ofsted rating | D87: School is rated | G87: School is rated | L87: School is rated | Q87: School is rated
D88: =IF(Dashboard!D15="","","Inadequate") -> Inadequate | G88: =IF(Dashboard!D15="","","Requires Improvement (RI)") -> Requires Improvement (RI) | L88: =IF(Dashboard!D15="","","Good") -> Good | Q88: =IF(Dashboard!D15="","","Outstanding") -> Outstanding
B90: =IF(OR($B$3="- a primary school",$B$3="- a nursery school"),"","Progress 8 score") ->  | D90: =IF(B90="","","Less than or equal to") ->  | E90: =IF(OR(Dashboard!D15="",B90=""),"",-0.5) ->  | G90: =IF(B90="","","Between") ->  | H90: =IF(OR(Dashboard!D15="",B90=""),"",-0.5) ->  | I90: =IF(B90="","","and") ->  | J90: =IF(OR(Dashboard!D15="",B90=""),"",0) ->  | L90: =IF(B90="","","Between") ->  | M90: =IF(OR(Dashboard!D15="",B90=""),"",0) ->  | N90: =IF(B90="","","and") ->  | O90: =IF(OR(Dashboard!D15="",B90=""),"",0.5) ->  | Q90: =IF(B90="","","More than") ->  | R90: =IF(OR(Dashboard!D15="",B90=""),"",0.5) -> 
B93: =IF(OR($B$3="- a secondary school with a sixth form", $B$3="- a secondary school without a sixth form",$B$3="- a nursery school"),"","Progress score in reading") -> Progress score in reading | D93: =IF(B93="","","Less than or equal to") -> Less than or equal to | E93: =IF(OR(Dashboard!D15="",B93=""),"",-2.7) -> -2.7 | G93: =IF(B93="","","Between") -> Between | H93: =IF(OR(Dashboard!D15="",B93=""),"",-2.7) -> -2.7 | I93: =IF(B93="","","and") -> and | J93: =IF(OR(Dashboard!D15="",B93=""),"",0) -> 0 | L93: =IF(B93="","","Between") -> Between | M93: =IF(OR(Dashboard!D15="",B93=""),"",0) -> 0 | N93: =IF(B93="","","and") -> and | O93: =IF(OR(Dashboard!D15="",B93=""),"",3.2) -> 3.2 | Q93: =IF(B93="","","More than") -> More than | R93: =IF(OR(Dashboard!D15="",B93=""),"",3.2) -> 3.2
B96: =IF(OR($B$3="- a secondary school with a sixth form", $B$3="- a secondary school without a sixth form",$B$3="- a nursery school"),"","Progress score in writing") -> Progress score in writing | D96: =IF(B96="","","Less than or equal to") -> Less than or equal to | E96: =IF(OR(Dashboard!D15="",B96=""),"",-2.6) -> -2.6 | G96: =IF(B96="","","Between") -> Between | H96: =IF(OR(Dashboard!D15="",B96=""),"",-2.6) -> -2.6 | I96: =IF(B96="","","and") -> and | J96: =IF(OR(Dashboard!D15="",B96=""),"",0) -> 0 | L96: =IF(B96="","","Between") -> Between | M96: =IF(OR(Dashboard!D15="",B96=""),"",0) -> 0 | N96: =IF(B96="","","and") -> and | O96: =IF(OR(Dashboard!D15="",B96=""),"",2.7) -> 2.7 | Q96: =IF(B96="","","More than") -> More than | R96: =IF(OR(Dashboard!D15="",B96=""),"",2.7) -> 2.7
B99: =IF(OR($B$3="- a secondary school with a sixth form", $B$3="- a secondary school without a sixth form",$B$3="- a nursery school"),"","Progress score in maths") -> Progress score in maths | D99: =IF(B99="","","Less than or equal to") -> Less than or equal to | E99: =IF(OR(Dashboard!D15="",B99=""),"",-3.1) -> -3.1 | G99: =IF(B99="","","Between") -> Between | H99: =IF(OR(Dashboard!D15="",B99=""),"",-3.1) -> -3.1 | I99: =IF(B99="","","and") -> and | J99: =IF(OR(Dashboard!D15="",B99=""),"",0) -> 0 | L99: =IF(B99="","","Between") -> Between | M99: =IF(OR(Dashboard!D15="",B99=""),"",0) -> 0 | N99: =IF(B99="","","and") -> and | O99: =IF(OR(Dashboard!D15="",B99=""),"",3.2) -> 3.2 | Q99: =IF(B99="","","More than") -> More than | R99: =IF(OR(Dashboard!D15="",B99=""),"",3.2) -> 3.2

Sheet RAG rating data for all schools
B1: Expand the groups to see the thresholds
A3: Sample size | B3: Phase | C3: Size | D3: FSM | F3: Red if less than: | G3: Amber if less than: | H3: Dark green if between: | I3: (Median) | J3: and: | K3: Amber if more than: | L3: Red if more than: | N3: Light green for everything else
A4: 726 | B4: Primary | C4: Very small | D4: Low FSM | E4: PVSL
B5: Primary | C5: Very small | D5: Low FSM | E5: Spend on teaching staff as a percentage of total expenditure - 2017-18 | F5: 39.5% | G5: 42.0% | H5: 45.5% | I5: 47.0% | J5: 48.5% | K5: 51.5% | L5: 54.0%
B6: Primary | C6: Very small | D6: Low FSM | E6: Spend on teaching staff as a percentage of total expenditure - 2018-19 | F6: 40.0% | G6: 42.5% | H6: 46.0% | I6: 47.5% | J6: 48.5% | K6: 52.0% | L6: 54.0%
B7: Primary | C7: Very small | D7: Low FSM | E7: Spend on teaching staff as a percentage of total expenditure - 2019-20 | F7: 41.5% | G7: 44.0% | H7: 47.5% | I7: 49.0% | J7: 50.0% | K7: 53.5% | L7: 55.5%
B8: Primary | C8: Very small | D8: Low FSM | E8: Spend on teaching staff as a percentage of total expenditure - 2019/20 | F8: 42.0% | G8: 45.0% | H8: 48.0% | I8: 49.5% | J8: 51.0% | K8: 54.5% | L8: 56.5%
B9: Primary | C9: Very small | D9: Low FSM | E9: Spend on supply staff as a percentage of total expenditure | H9: 2.0% | I9: 2.0% | J9: 2.5% | K9: 4.0% | L9: 5.5%
B10: Primary | C10: Very small | D10: Low FSM | E10: Spend on education support staff as a percentage of total expenditure | H10: 12.5% | I10: 13.0% | J10: 14.5% | K10: 17.0% | L10: 19.0%
B11: Primary | C11: Very small | D11: Low FSM | E11: Spend on administrative and clerical staff as a percentage of total expenditure | I11: 5.5% | K11: 7.5% | L11: 8.5%
B12: Primary | C12: Very small | D12: Low FSM | E12: Spend on other staff costs as a percentage of total expenditure | I12: 3.0% | K12: 5.0% | L12: 6.5%
B13: Primary | C13: Very small | D13: Low FSM | E13: Spend on premises (including staff costs) as a percentage of total expenditure | I13: 5.0% | K13: 6.5% | L13: 8.0%
B14: Primary | C14: Very small | D14: Low FSM | E14: Spend on teaching resources as a percentage of total expenditure | F14: 3.0% | G14: 4.0% | H14: 5.0% | I14: 5.5% | J14: 6.5%
B15: Primary | C15: Very small | D15: Low FSM | E15: Spend on energy as a percentage of total expenditure | I15: 1.0% | K15: 1.5% | L15: 2.0%
B16: Primary | C16: Very small | D16: Low FSM | E16: Senior leaders as a percentage of workforce | H16: 11.5% | I16: 12.5% | J16: 14.0% | K16: 17.5% | L16: 21.5%
B17: Primary | C17: Very small | D17: Low FSM | E17: Pupil to teacher ratio | F17: 12.0 | G17: 14.0 | H17: 16.0 | I17: 17.0 | J17: 18.0 | K17: 20.0 | L17: 22.5
B18: Primary | C18: Very small | D18: Low FSM | E18: Pupil to adult ratio | F18: 6.0 | G18: 7.0 | H18: 8.0 | I18: 8.5 | J18: 9.0 | K18: 10.0 | L18: 11.0
B19: Primary | C19: Very small | D19: Low FSM | E19: Average class size | F19: 14.0 | G19: 17.0 | H19: 20.5 | I19: 21.0 | J19: 22.5 | K19: 24.5 | L19: 26.0
A21: 698 | B21: Primary | C21: Small | D21: Low FSM | E21: PSL
B22: Primary | C22: Small | D22: Low FSM | E22: Spend on teaching staff as a percentage of total expenditure - 2017-18 | F22: 40.5% | G22: 43.0% | H22: 46.0% | I22: 47.0% | J22: 48.0% | K22: 51.5% | L22: 53.5%
B23: Primary | C23: Small | D23: Low FSM | E23: Spend on teaching staff as a percentage of total expenditure - 2018-19 | F23: 41.0% | G23: 43.5% | H23: 46.5% | I23: 47.5% | J23: 48.5% | K23: 52.0% | L23: 53.5%
B24: Primary | C24: Small | D24: Low FSM | E24: Spend on teaching staff as a percentage of total expenditure - 2019-20 | F24: 42.5% | G24: 45.0% | H24: 48.0% | I24: 49.0% | J24: 50.0% | K24: 53.5% | L24: 55.0%
B25: Primary | C25: Small | D25: Low FSM | E25: Spend on teaching staff as a percentage of total expenditure - 2019/20 | F25: 43.0% | G25: 45.5% | H25: 48.5% | I25: 49.5% | J25: 51.0% | K25: 54.0% | L25: 56.0%
B26: Primary | C26: Small | D26: Low FSM | E26: Spend on supply staff as a percentage of total expenditure | H26: 2.0% | I26: 2.0% | J26: 2.5% | K26: 4.0% | L26: 5.5%
B27: Primary | C27: Small | D27: Low FSM | E27: Spend on education support staff as a percentage of total expenditure | H27: 13.5% | I27: 14.5% | J27: 15.5% | K27: 17.5% | L27: 19.5%
B28: Primary | C28: Small | D28: Low FSM | E28: Spend on administrative and clerical staff as a percentage of total expenditure | I28: 5.0% | K28: 6.5% | L28: 7.5%
B29: Primary | C29: Small | D29: Low FSM | E29: Spend on other staff costs as a percentage of total expenditure | I29: 3.5% | K29: 5.0% | L29: 6.5%
B30: Primary | C30: Small | D30: Low FSM | E30: Spend on premises (including staff costs) as a percentage of total expenditure | I30: 5.0% | K30: 6.0% | L30: 7.0%
B31: Primary | C31: Small | D31: Low FSM | E31: Spend on teaching resources as a percentage of total expenditure | F31: 3.0% | G31: 4.0% | H31: 5.0% | I31: 5.5% | J31: 6.0%
B32: Primary | C32: Small | D32: Low FSM | E32: Spend on energy as a percentage of total expenditure | I32: 1.0% | K32: 1.5% | L32: 2.0%
B33: Primary | C33: Small | D33: Low FSM | E33: Senior leaders as a percentage of workforce | H33: 10.0% | I33: 11.5% | J33: 12.5% | K33: 15.5% | L33: 18.0%
B34: Primary | C34: Small | D34: Low FSM | E34: Pupil to teacher ratio | F34: 17.0 | G34: 18.5 | H34: 19.5 | I34: 20.5 | J34: 21.0 | K34: 22.5 | L34: 24.0
B35: Primary | C35: Small | D35: Low FSM | E35: Pupil to adult ratio | F35: 8.0 | G35: 8.5 | H35: 9.0 | I35: 9.5 | J35: 10.0 | K35: 11.0 | L35: 12.0
B36: Primary | C36: Small | D36: Low FSM | E36: Average class size | F36: 21.5 | G36: 23.0 | H36: 25.0 | I36: 26.0 | J36: 26.5 | K36: 28.0 | L36: 29.0
A38: 1,757 | B38: Primary | C38: Medium | D38: Low FSM | E38: PML
B39: Primary | C39: Medium | D39: Low FSM | E39: Spend on teaching staff as a percentage of total expenditure - 2017-18 | F39: 40.5% | G39: 42.5% | H39: 45.5% | I39: 46.5% | J39: 48.0% | K39: 50.5% | L39: 52.5%
B40: Primary | C40: Medium | D40: Low FSM | E40: Spend on teaching staff as a percentage of total expenditure - 2018-19 | F40: 40.5% | G40: 43.0% | H40: 46.0% | I40: 47.0% | J40: 48.5% | K40: 51.0% | L40: 53.0%
B41: Primary | C41: Medium | D41: Low FSM | E41: Spend on teaching staff as a percentage of total expenditure - 2019-20 | F41: 42.0% | G41: 44.5% | H41: 47.0% | I41: 48.5% | J41: 50.0% | K41: 52.0% | L41: 54.5%
B42: Primary | C42: Medium | D42: Low FSM | E42: Spend on teaching staff as a percentage of total expenditure - 2019/20 | F42: 43.0% | G42: 45.0% | H42: 48.0% | I42: 49.5% | J42: 50.5% | K42: 53.0% | L42: 55.0%
B43: Primary | C43: Medium | D43: Low FSM | E43: Spend on supply staff as a percentage of total expenditure | H43: 2.0% | I43: 2.0% | J43: 2.5% | K43: 4.0% | L43: 5.0%
B44: Primary | C44: Medium | D44: Low FSM | E44: Spend on education support staff as a percentage of total expenditure | H44: 14.5% | I44: 15.5% | J44: 16.5% | K44: 19.0% | L44: 21.0%
B45: Primary | C45: Medium | D45: Low FSM | E45: Spend on administrative and clerical staff as a percentage of total expenditure | I45: 5.0% | K45: 6.0% | L45: 7.0%
B46: Primary | C46: Medium | D46: Low FSM | E46: Spend on other staff costs as a percentage of total expenditure | I46: 3.5% | K46: 5.0% | L46: 6.5%
B47: Primary | C47: Medium | D47: Low FSM | E47: Spend on premises (including staff costs) as a percentage of total expenditure | I47: 5.0% | K47: 6.5% | L47: 7.5%
B48: Primary | C48: Medium | D48: Low FSM | E48: Spend on teaching resources as a percentage of total expenditure | F48: 3.0% | G48: 4.0% | H48: 5.0% | I48: 5.5% | J48: 6.0%
B49: Primary | C49: Medium | D49: Low FSM | E49: Spend on energy as a percentage of total expenditure | I49: 1.0% | K49: 1.5% | L49: 2.0%
B50: Primary | C50: Medium | D50: Low FSM | E50: Senior leaders as a percentage of workforce | H50: 9.0% | I50: 9.5% | J50: 10.0% | K50: 11.5% | L50: 13.5%
B51: Primary | C51: Medium | D51: Low FSM | E51: Pupil to teacher ratio | F51: 19.5 | G51: 20.5 | H51: 22.0 | I51: 22.5 | J51: 23.0 | K51: 24.5 | L51: 26.0
B52: Primary | C52: Medium | D52: Low FSM | E52: Pupil to adult ratio | F52: 8.5 | G52: 9.5 | H52: 10.0 | I52: 10.5 | J52: 11.0 | K52: 12.0 | L52: 12.5
B53: Primary | C53: Medium | D53: Low FSM | E53: Average class size | F53: 26.0 | G53: 27.0 | H53: 28.5 | I53: 29.0 | J53: 29.5 | K53: 30.0 | L53: 30.5
A55: 650 | B55: Primary | C55: Large | D55: Low FSM | E55: PLL
B56: Primary | C56: Large | D56: Low FSM | E56: Spend on teaching staff as a percentage of total expenditure - 2017-18 | F56: 42.0% | G56: 44.5% | H56: 47.0% | I56: 48.0% | J56: 49.0% | K56: 51.0% | L56: 53.0%
B57: Primary | C57: Large | D57: Low FSM | E57: Spend on teaching staff as a percentage of total expenditure - 2018-19 | F57: 42.5% | G57: 44.5% | H57: 47.0% | I57: 48.0% | J57: 49.5% | K57: 51.5% | L57: 53.5%
B58: Primary | C58: Large | D58: Low FSM | E58: Spend on teaching staff as a percentage of total expenditure - 2019-20 | F58: 44.0% | G58: 46.0% | H58: 48.5% | I58: 49.5% | J58: 51.0% | K58: 53.0% | L58: 55.0%
B59: Primary | C59: Large | D59: Low FSM | E59: Spend on teaching staff as a percentage of total expenditure - 2019/20 | F59: 44.5% | G59: 47.0% | H59: 49.5% | I59: 50.5% | J59: 51.5% | K59: 54.0% | L59: 55.5%
B60: Primary | C60: Large | D60: Low FSM | E60: Spend on supply staff as a percentage of total expenditure | H60: 1.5% | I60: 2.0% | J60: 2.5% | K60: 3.5% | L60: 5.0%
B61: Primary | C61: Large | D61: Low FSM | E61: Spend on education support staff as a percentage of total expenditure | H61: 15.5% | I61: 16.0% | J61: 17.0% | K61: 19.5% | L61: 21.0%
B62: Primary | C62: Large | D62: Low FSM | E62: Spend on administrative and clerical staff as a percentage of total expenditure | I62: 4.5% | K62: 6.0% | L62: 7.0%
B63: Primary | C63: Large | D63: Low FSM | E63: Spend on other staff costs as a percentage of total expenditure | I63: 3.5% | K63: 5.0% | L63: 6.0%
B64: Primary | C64: Large | D64: Low FSM | E64: Spend on premises (including staff costs) as a percentage of total expenditure | I64: 5.0% | K64: 6.0% | L64: 7.0%
B65: Primary | C65: Large | D65: Low FSM | E65: Spend on teaching resources as a percentage of total expenditure | F65: 3.0% | G65: 4.0% | H65: 4.5% | I65: 5.0% | J65: 5.5%
B66: Primary | C66: Large | D66: Low FSM | E66: Spend on energy as a percentage of total expenditure | I66: 1.0% | K66: 1.5% | L66: 2.0%
B67: Primary | C67: Large | D67: Low FSM | E67: Senior leaders as a percentage of workforce | H67: 6.0% | I67: 7.0% | J67: 7.5% | K67: 9.0% | L67: 10.0%
B68: Primary | C68: Large | D68: Low FSM | E68: Pupil to teacher ratio | F68: 20.5 | G68: 21.5 | H68: 22.5 | I68: 23.0 | J68: 24.0 | K68: 25.0 | L68: 26.5
B69: Primary | C69: Large | D69: Low FSM | E69: Pupil to adult ratio | F69: 9.5 | G69: 10.0 | H69: 11.0 | I69: 11.0 | J69: 11.5 | K69: 12.5 | L69: 13.0
B70: Primary | C70: Large | D70: Low FSM | E70: Average class size | F70: 28.0 | G70: 28.5 | H70: 29.0 | I70: 29.5 | J70: 29.5 | K70: 30.0 | L70: 30.5
A72: 880 | B72: Primary | C72: Very small | D72: Medium FSM | E72: PVSM
B73: Primary | C73: Very small | D73: Medium FSM | E73: Spend on teaching staff as a percentage of total expenditure - 2017-18 | F73: 38.0% | G73: 41.5% | H73: 44.5% | I73: 45.5% | J73: 47.5% | K73: 51.0% | L73: 53.5%
B74: Primary | C74: Very small | D74: Medium FSM | E74: Spend on teaching staff as a percentage of total expenditure - 2018-19 | F74: 38.5% | G74: 42.0% | H74: 45.0% | I74: 46.0% | J74: 48.0% | K74: 51.5% | L74: 54.0%
B75: Primary | C75: Very small | D75: Medium FSM | E75: Spend on teaching staff as a percentage of total expenditure - 2019-20 | F75: 40.0% | G75: 43.0% | H75: 46.0% | I75: 47.5% | J75: 49.5% | K75: 53.0% | L75: 55.5%
B76: Primary | C76: Very small | D76: Medium FSM | E76: Spend on teaching staff as a percentage of total expenditure - 2019/20 | F76: 41.0% | G76: 44.0% | H76: 47.0% | I76: 48.5% | J76: 50.0% | K76: 53.5% | L76: 56.5%
B77: Primary | C77: Very small | D77: Medium FSM | E77: Spend on supply staff as a percentage of total expenditure | H77: 2.0% | I77: 2.5% | J77: 3.0% | K77: 5.0% | L77: 6.5%
B78: Primary | C78: Very small | D78: Medium FSM | E78: Spend on education support staff as a percentage of total expenditure | H78: 13.0% | I78: 14.5% | J78: 15.5% | K78: 18.0% | L78: 20.0%
B79: Primary | C79: Very small | D79: Medium FSM | E79: Spend on administrative and clerical staff as a percentage of total expenditure | I79: 5.5% | K79: 7.5% | L79: 8.5%
B80: Primary | C80: Very small | D80: Medium FSM | E80: Spend on other staff costs as a percentage of total expenditure | I80: 3.5% | K80: 5.0% | L80: 6.5%
B81: Primary | C81: Very small | D81: Medium FSM | E81: Spend on premises (including staff costs) as a percentage of total expenditure | I81: 5.0% | K81: 6.5% | L81: 8.0%
B82: Primary | C82: Very small | D82: Medium FSM | E82: Spend on teaching resources as a percentage of total expenditure | F82: 3.0% | G82: 4.0% | H82: 5.0% | I82: 5.5% | J82: 6.0%
B83: Primary | C83: Very small | D83: Medium FSM | E83: Spend on energy as a percentage of total expenditure | I83: 1.0% | K83: 1.5% | L83: 2.0%
B84: Primary | C84: Very small | D84: Medium FSM | E84: Senior leaders as a percentage of workforce | H84: 10.5% | I84: 12.0% | J84: 13.5% | K84: 17.5% | L84: 20.5%
B85: Primary | C85: Very small | D85: Medium FSM | E85: Pupil to teacher ratio | F85: 12.0 | G85: 14.0 | H85: 16.0 | I85: 17.0 | J85: 18.0 | K85: 20.0 | L85: 22.0
B86: Primary | C86: Very small | D86: Medium FSM | E86: Pupil to adult ratio | F86: 5.5 | G86: 6.5 | H86: 7.5 | I86: 8.0 | J86: 8.5 | K86: 9.5 | L86: 10.5
B87: Primary | C87: Very small | D87: Medium FSM | E87: Average class size | F87: 14.5 | G87: 17.0 | H87: 20.0 | I87: 21.5 | J87: 22.5 | K87: 24.5 | L87: 26.0
A89: 994 | B89: Primary | C89: Small | D89: Medium FSM | E89: PSM
B90: Primary | C90: Small | D90: Medium FSM | E90: Spend on teaching staff as a percentage of total expenditure - 2017-18 | F90: 40.5% | G90: 43.0% | H90: 46.0% | I90: 47.0% | J90: 48.0% | K90: 51.5% | L90: 53.5%
B91: Primary | C91: Small | D91: Medium FSM | E91: Spend on teaching staff as a percentage of total expenditure - 2018-19 | F91: 41.0% | G91: 43.5% | H91: 46.5% | I91: 47.5% | J91: 48.5% | K91: 52.0% | L91: 53.5%
B92: Primary | C92: Small | D92: Medium FSM | E92: Spend on teaching staff as a percentage of total expenditure - 2019-20 | F92: 42.5% | G92: 45.0% | H92: 48.0% | I92: 49.0% | J92: 50.0% | K92: 53.5% | L92: 55.0%
B93: Primary | C93: Small | D93: Medium FSM | E93: Spend on teaching staff as a percentage of total expenditure - 2019/20 | F93: 43.0% | G93: 45.5% | H93: 48.5% | I93: 49.5% | J93: 51.0% | K93: 54.0% | L93: 56.0%
B94: Primary | C94: Small | D94: Medium FSM | E94: Spend on supply staff as a percentage of total expenditure | H94: 2.0% | I94: 2.0% | J94: 2.5% | K94: 4.0% | L94: 5.5%
B95: Primary | C95: Small | D95: Medium FSM | E95: Spend on education support staff as a percentage of total expenditure | H95: 13.5% | I95: 14.5% | J95: 15.5% | K95: 17.5% | L95: 19.5%
B96: Primary | C96: Small | D96: Medium FSM | E96: Spend on administrative and clerical staff as a percentage of total expenditure | I96: 5.0% | K96: 6.5% | L96: 7.5%
B97: Primary | C97: Small | D97: Medium FSM | E97: Spend on other staff costs as a percentage of total expenditure | I97: 3.5% | K97: 5.0% | L97: 6.5%
B98: Primary | C98: Small | D98: Medium FSM | E98: Spend on premises (including staff costs) as a percentage of total expenditure | I98: 5.0% | K98: 6.0% | L98: 7.0%
B99: Primary | C99: Small | D99: Medium FSM | E99: Spend on teaching resources as a percentage of total expenditure | F99: 3.0% | G99: 4.0% | H99: 5.0% | I99: 5.5% | J99: 6.0%
B100: Primary | C100: Small | D100: Medium FSM | E100: Spend on energy as a percentage of total expenditure | I100: 1.0% | K100: 1.5% | L100: 2.0%
B101: Primary | C101: Small | D101: Medium FSM | E101: Senior leaders as a percentage of workforce | H101: 10.0% | I101: 11.5% | J101: 12.5% | K101: 15.5% | L101: 18.0%
B102: Primary | C102: Small | D102: Medium FSM | E102: Pupil to teacher ratio | F102: 17.0 | G102: 18.5 | H102: 19.5 | I102: 20.5 | J102: 21.0 | K102: 22.5 | L102: 24.0
B103: Primary | C103: Small | D103: Medium FSM | E103: Pupil to adult ratio | F103: 8.0 | G103: 8.5 | H103: 9.0 | I103: 9.5 | J103: 10.0 | K103: 11.0 | L103: 12.0
B104: Primary | C104: Small | D104: Medium FSM | E104: Average class size | F104: 21.5 | G104: 23.0 | H104: 25.0 | I104: 26.0 | J104: 26.5 | K104: 28.0 | L104: 29.0
A106: 3,735 | B106: Primary | C106: Medium | D106: Medium FSM | E106: PMM
B107: Primary | C107: Medium | D107: Medium FSM | E107: Spend on teaching staff as a percentage of total expenditure - 2017-18 | F107: 40.5% | G107: 42.5% | H107: 45.5% | I107: 46.5% | J107: 48.0% | K107: 50.5% | L107: 52.5%
B108: Primary | C108: Medium | D108: Medium FSM | E108: Spend on teaching staff as a percentage of total expenditure - 2018-19 | F108: 40.5% | G108: 43.0% | H108: 46.0% | I108: 47.0% | J108: 48.5% | K108: 51.0% | L108: 53.0%
B109: Primary | C109: Medium | D109: Medium FSM | E109: Spend on teaching staff as a percentage of total expenditure - 2019-20 | F109: 42.0% | G109: 44.5% | H109: 47.0% | I109: 48.5% | J109: 50.0% | K109: 52.0% | L109: 54.5%
B110: Primary | C110: Medium | D110: Medium FSM | E110: Spend on teaching staff as a percentage of total expenditure - 2019/20 | F110: 43.0% | G110: 45.0% | H110: 48.0% | I110: 49.5% | J110: 50.5% | K110: 53.0% | L110: 55.0%
B111: Primary | C111: Medium | D111: Medium FSM | E111: Spend on supply staff as a percentage of total expenditure | H111: 2.0% | I111: 2.0% | J111: 2.5% | K111: 4.0% | L111: 5.0%
B112: Primary | C112: Medium | D112: Medium FSM | E112: Spend on education support staff as a percentage of total expenditure | H112: 14.5% | I112: 15.5% | J112: 16.5% | K112: 19.0% | L112: 21.0%
B113: Primary | C113: Medium | D113: Medium FSM | E113: Spend on administrative and clerical staff as a percentage of total expenditure | I113: 5.0% | K113: 6.0% | L113: 7.0%
B114: Primary | C114: Medium | D114: Medium FSM | E114: Spend on other staff costs as a percentage of total expenditure | I114: 3.5% | K114: 5.0% | L114: 6.5%
B115: Primary | C115: Medium | D115: Medium FSM | E115: Spend on premises (including staff costs) as a percentage of total expenditure | I115: 5.0% | K115: 6.5% | L115: 7.5%
B116: Primary | C116: Medium | D116: Medium FSM | E116: Spend on teaching resources as a percentage of total expenditure | F116: 3.0% | G116: 4.0% | H116: 5.0% | I116: 5.5% | J116: 6.0%
B117: Primary | C117: Medium | D117: Medium FSM | E117: Spend on energy as a percentage of total expenditure | I117: 1.0% | K117: 1.5% | L117: 2.0%
B118: Primary | C118: Medium | D118: Medium FSM | E118: Senior leaders as a percentage of workforce | H118: 9.0% | I118: 9.5% | J118: 10.0% | K118: 11.5% | L118: 13.5%
B119: Primary | C119: Medium | D119: Medium FSM | E119: Pupil to teacher ratio | F119: 19.5 | G119: 20.5 | H119: 22.0 | I119: 22.5 | J119: 23.0 | K119: 24.5 | L119: 26.0
B120: Primary | C120: Medium | D120: Medium FSM | E120: Pupil to adult ratio | F120: 8.5 | G120: 9.5 | H120: 10.0 | I120: 10.5 | J120: 11.0 | K120: 12.0 | L120: 12.5
B121: Primary | C121: Medium | D121: Medium FSM | E121: Average class size | F121: 26.0 | G121: 27.0 | H121: 28.5 | I121: 29.0 | J121: 29.5 | K121: 30.0 | L121: 30.5
A123: 2,027 | B123: Primary | C123: Large | D123: Medium FSM | E123: PLM
B124: Primary | C124: Large | D124: Medium FSM | E124: Spend on teaching staff as a percentage of total expenditure - 2017-18 | F124: 38.5% | G124: 41.0% | H124: 44.5% | I124: 45.5% | J124: 47.0% | K124: 49.5% | L124: 52.0%
B125: Primary | C125: Large | D125: Medium FSM | E125: Spend on teaching staff as a percentage of total expenditure - 2018-19 | F125: 38.5% | G125: 41.5% | H125: 44.5% | I125: 46.0% | J125: 47.0% | K125: 50.0% | L125: 52.0%
B126: Primary | C126: Large | D126: Medium FSM | E126: Spend on teaching staff as a percentage of total expenditure - 2019-20 | F126: 40.0% | G126: 43.0% | H126: 46.0% | I126: 47.5% | J126: 48.5% | K126: 51.5% | L126: 53.5%
B127: Primary | C127: Large | D127: Medium FSM | E127: Spend on teaching staff as a percentage of total expenditure - 2019/20 | F127: 41.0% | G127: 43.5% | H127: 47.0% | I127: 48.0% | J127: 49.5% | K127: 52.0% | L127: 54.5%
B128: Primary | C128: Large | D128: Medium FSM | E128: Spend on supply staff as a percentage of total expenditure | H128: 2.0% | I128: 2.0% | J128: 3.0% | K128: 4.0% | L128: 5.5%
B129: Primary | C129: Large | D129: Medium FSM | E129: Spend on education support staff as a percentage of total expenditure | H129: 17.5% | I129: 18.5% | J129: 19.5% | K129: 22.0% | L129: 24.5%
B130: Primary | C130: Large | D130: Medium FSM | E130: Spend on administrative and clerical staff as a percentage of total expenditure | I130: 4.5% | K130: 6.0% | L130: 6.5%
B131: Primary | C131: Large | D131: Medium FSM | E131: Spend on other staff costs as a percentage of total expenditure | I131: 3.5% | K131: 5.0% | L131: 6.0%
B132: Primary | C132: Large | D132: Medium FSM | E132: Spend on premises (including staff costs) as a percentage of total expenditure | I132: 5.0% | K132: 6.5% | L132: 7.5%
B133: Primary | C133: Large | D133: Medium FSM | E133: Spend on teaching resources as a percentage of total expenditure | F133: 3.0% | G133: 3.5% | H133: 4.5% | I133: 4.5% | J133: 5.0%
B134: Primary | C134: Large | D134: Medium FSM | E134: Spend on energy as a percentage of total expenditure | I134: 1.0% | K134: 1.5% | L134: 2.0%
B135: Primary | C135: Large | D135: Medium FSM | E135: Senior leaders as a percentage of workforce | H135: 6.0% | I135: 6.5% | J135: 7.5% | K135: 9.0% | L135: 10.5%
B136: Primary | C136: Large | D136: Medium FSM | E136: Pupil to teacher ratio | F136: 18.5 | G136: 20.0 | H136: 21.5 | I136: 22.0 | J136: 22.5 | K136: 24.0 | L136: 25.0
B137: Primary | C137: Large | D137: Medium FSM | E137: Pupil to adult ratio | F137: 8.0 | G137: 8.5 | H137: 9.5 | I137: 10.0 | J137: 10.0 | K137: 11.0 | L137: 12.0
B138: Primary | C138: Large | D138: Medium FSM | E138: Average class size | F138: 26.0 | G138: 27.0 | H138: 28.5 | I138: 29.0 | J138: 29.0 | K138: 29.5 | L138: 30.0
A140: 214 | B140: Primary | C140: Very small | D140: High FSM | E140: PVSH
B141: Primary | C141: Very small | D141: High FSM | E141: Spend on teaching staff as a percentage of total expenditure - 2017-18 | F141: 36.0% | G141: 39.5% | H141: 42.5% | I141: 44.0% | J141: 45.5% | K141: 49.0% | L141: 52.0%
B142: Primary | C142: Very small | D142: High FSM | E142: Spend on teaching staff as a percentage of total expenditure - 2018-19 | F142: 36.5% | G142: 39.5% | H142: 43.0% | I142: 44.0% | J142: 46.0% | K142: 49.5% | L142: 52.5%
B143: Primary | C143: Very small | D143: High FSM | E143: Spend on teaching staff as a percentage of total expenditure - 2019-20 | F143: 37.5% | G143: 41.0% | H143: 44.5% | I143: 45.5% | J143: 47.5% | K143: 51.0% | L143: 54.0%
B144: Primary | C144: Very small | D144: High FSM | E144: Spend on teaching staff as a percentage of total expenditure - 2019/20 | F144: 38.5% | G144: 42.0% | H144: 45.5% | I144: 46.5% | J144: 48.5% | K144: 51.5% | L144: 55.0%
B145: Primary | C145: Very small | D145: High FSM | E145: Spend on supply staff as a percentage of total expenditure | H145: 2.0% | I145: 2.5% | J145: 3.0% | K145: 5.5% | L145: 8.0%
B146: Primary | C146: Very small | D146: High FSM | E146: Spend on education support staff as a percentage of total expenditure | H146: 14.0% | I146: 15.0% | J146: 17.0% | K146: 20.0% | L146: 23.5%
B147: Primary | C147: Very small | D147: High FSM | E147: Spend on administrative and clerical staff as a percentage of total expenditure | I147: 5.5% | K147: 7.5% | L147: 8.5%
B148: Primary | C148: Very small | D148: High FSM | E148: Spend on other staff costs as a percentage of total expenditure | I148: 3.5% | K148: 5.0% | L148: 6.5%
B149: Primary | C149: Very small | D149: High FSM | E149: Spend on premises (including staff costs) as a percentage of total expenditure | I149: 5.5% | K149: 7.0% | L149: 8.5%
B150: Primary | C150: Very small | D150: High FSM | E150: Spend on teaching resources as a percentage of total expenditure | F150: 3.0% | G150: 4.0% | H150: 5.0% | I150: 5.5% | J150: 6.0%
B151: Primary | C151: Very small | D151: High FSM | E151: Spend on energy as a percentage of total expenditure | I151: 1.0% | K151: 1.5% | L151: 2.0%
B152: Primary | C152: Very small | D152: High FSM | E152: Senior leaders as a percentage of workforce | H152: 10.5% | I152: 12.0% | J152: 13.5% | K152: 17.0% | L152: 20.0%
B153: Primary | C153: Very small | D153: High FSM | E153: Pupil to teacher ratio | F153: 11.0 | G153: 13.0 | H153: 15.5 | I153: 16.0 | J153: 17.0 | K153: 19.0 | L153: 20.5
B154: Primary | C154: Very small | D154: High FSM | E154: Pupil to adult ratio | F154: 5.0 | G154: 5.5 | H154: 6.5 | I154: 7.0 | J154: 7.5 | K154: 8.5 | L154: 9.5
B155: Primary | C155: Very small | D155: High FSM | E155: Average class size | F155: 13.0 | G155: 16.5 | H155: 19.5 | I155: 20.5 | J155: 22.5 | K155: 24.0 | L155: 25.5
A157: 370 | B157: Primary | C157: Small | D157: High FSM | E157: PSH
B158: Primary | C158: Small | D158: High FSM | E158: Spend on teaching staff as a percentage of total expenditure - 2017-18 | F158: 36.5% | G158: 39.0% | H158: 42.0% | I158: 43.5% | J158: 45.0% | K158: 48.0% | L158: 51.5%
B159: Primary | C159: Small | D159: High FSM | E159: Spend on teaching staff as a percentage of total expenditure - 2018-19 | F159: 36.5% | G159: 39.0% | H159: 42.5% | I159: 44.0% | J159: 45.0% | K159: 48.5% | L159: 52.0%
B160: Primary | C160: Small | D160: High FSM | E160: Spend on teaching staff as a percentage of total expenditure - 2019-20 | F160: 38.0% | G160: 40.5% | H160: 44.0% | I160: 45.5% | J160: 46.5% | K160: 50.0% | L160: 53.5%
B161: Primary | C161: Small | D161: High FSM | E161: Spend on teaching staff as a percentage of total expenditure - 2019/20 | F161: 39.0% | G161: 41.5% | H161: 44.5% | I161: 46.0% | J161: 47.5% | K161: 51.0% | L161: 54.0%
B162: Primary | C162: Small | D162: High FSM | E162: Spend on supply staff as a percentage of total expenditure | H162: 2.0% | I162: 2.5% | J162: 3.5% | K162: 5.5% | L162: 7.5%
B163: Primary | C163: Small | D163: High FSM | E163: Spend on education support staff as a percentage of total expenditure | H163: 16.5% | I163: 17.5% | J163: 18.5% | K163: 21.5% | L163: 23.0%
B164: Primary | C164: Small | D164: High FSM | E164: Spend on administrative and clerical staff as a percentage of total expenditure | I164: 4.5% | K164: 6.5% | L164: 7.5%
B165: Primary | C165: Small | D165: High FSM | E165: Spend on other staff costs as a percentage of total expenditure | I165: 3.5% | K165: 5.0% | L165: 6.5%
B166: Primary | C166: Small | D166: High FSM | E166: Spend on premises (including staff costs) as a percentage of total expenditure | I166: 5.5% | K166: 7.0% | L166: 8.0%
B167: Primary | C167: Small | D167: High FSM | E167: Spend on teaching resources as a percentage of total expenditure | F167: 2.5% | G167: 3.5% | H167: 4.5% | I167: 5.0% | J167: 5.5%
B168: Primary | C168: Small | D168: High FSM | E168: Spend on energy as a percentage of total expenditure | I168: 1.0% | K168: 1.5% | L168: 2.0%
B169: Primary | C169: Small | D169: High FSM | E169: Senior leaders as a percentage of workforce | H169: 9.5% | I169: 10.5% | J169: 11.5% | K169: 13.5% | L169: 15.5%
B170: Primary | C170: Small | D170: High FSM | E170: Pupil to teacher ratio | F170: 15.0 | G170: 16.0 | H170: 17.5 | I170: 18.0 | J170: 19.0 | K170: 21.0 | L170: 22.5
B171: Primary | C171: Small | D171: High FSM | E171: Pupil to adult ratio | F171: 6.5 | G171: 7.0 | H171: 7.5 | I171: 8.0 | J171: 8.5 | K171: 9.0 | L171: 10.0
B172: Primary | C172: Small | D172: High FSM | E172: Average class size | F172: 19.0 | G172: 20.5 | H172: 22.5 | I172: 23.0 | J172: 24.0 | K172: 26.5 | L172: 28.0
A174: 2,197 | B174: Primary | C174: Medium | D174: High FSM | E174: PMH
B175: Primary | C175: Medium | D175: High FSM | E175: Spend on teaching staff as a percentage of total expenditure - 2017-18 | F175: 36.0% | G175: 38.5% | H175: 41.0% | I175: 42.5% | J175: 43.5% | K175: 46.5% | L175: 49.0%
B176: Primary | C176: Medium | D176: High FSM | E176: Spend on teaching staff as a percentage of total expenditure - 2018-19 | F176: 36.0% | G176: 38.5% | H176: 41.5% | I176: 43.0% | J176: 44.0% | K176: 47.0% | L176: 49.5%
B177: Primary | C177: Medium | D177: High FSM | E177: Spend on teaching staff as a percentage of total expenditure - 2019-20 | F177: 37.5% | G177: 40.0% | H177: 43.0% | I177: 44.0% | J177: 45.5% | K177: 48.5% | L177: 51.0%
B178: Primary | C178: Medium | D178: High FSM | E178: Spend on teaching staff as a percentage of total expenditure - 2019/20 | F178: 38.5% | G178: 41.0% | H178: 43.5% | I178: 45.0% | J178: 46.5% | K178: 49.0% | L178: 52.0%
B179: Primary | C179: Medium | D179: High FSM | E179: Spend on supply staff as a percentage of total expenditure | H179: 2.0% | I179: 2.5% | J179: 3.0% | K179: 4.5% | L179: 6.5%
B180: Primary | C180: Medium | D180: High FSM | E180: Spend on education support staff as a percentage of total expenditure | H180: 18.5% | I180: 20.0% | J180: 21.0% | K180: 23.5% | L180: 26.0%
B181: Primary | C181: Medium | D181: High FSM | E181: Spend on administrative and clerical staff as a percentage of total expenditure | I181: 4.5% | K181: 6.0% | L181: 7.5%
B182: Primary | C182: Medium | D182: High FSM | E182: Spend on other staff costs as a percentage of total expenditure | I182: 3.5% | K182: 5.0% | L182: 6.0%
B183: Primary | C183: Medium | D183: High FSM | E183: Spend on premises (including staff costs) as a percentage of total expenditure | I183: 5.5% | K183: 7.0% | L183: 8.0%
B184: Primary | C184: Medium | D184: High FSM | E184: Spend on teaching resources as a percentage of total expenditure | F184: 2.5% | G184: 3.5% | H184: 4.0% | I184: 4.5% | J184: 5.0%
B185: Primary | C185: Medium | D185: High FSM | E185: Spend on energy as a percentage of total expenditure | I185: 1.0% | K185: 1.5% | L185: 2.0%
B186: Primary | C186: Medium | D186: High FSM | E186: Senior leaders as a percentage of workforce | H186: 7.5% | I186: 8.0% | J186: 9.0% | K186: 11.0% | L186: 13.0%
B187: Primary | C187: Medium | D187: High FSM | E187: Pupil to teacher ratio | F187: 16.0 | G187: 17.5 | H187: 19.0 | I187: 19.5 | J187: 20.5 | K187: 22.5 | L187: 24.0
B188: Primary | C188: Medium | D188: High FSM | E188: Pupil to adult ratio | F188: 6.5 | G188: 7.5 | H188: 8.0 | I188: 8.5 | J188: 8.5 | K188: 9.5 | L188: 10.0
B189: Primary | C189: Medium | D189: High FSM | E189: Average class size | F189: 22.5 | G189: 23.5 | H189: 25.5 | I189: 26.5 | J189: 27.0 | K189: 28.5 | L189: 29.5
A191: 1,120 | B191: Primary | C191: Large | D191: High FSM | E191: PLH
B192: Primary | C192: Large | D192: High FSM | E192: Spend on teaching staff as a percentage of total expenditure - 2017-18 | F192: 35.5% | G192: 38.0% | H192: 41.0% | I192: 42.5% | J192: 43.5% | K192: 46.5% | L192: 49.0%
B193: Primary | C193: Large | D193: High FSM | E193: Spend on teaching staff as a percentage of total expenditure - 2018-19 | F193: 36.0% | G193: 38.5% | H193: 41.5% | I193: 42.5% | J193: 44.0% | K193: 47.0% | L193: 49.5%
B194: Primary | C194: Large | D194: High FSM | E194: Spend on teaching staff as a percentage of total expenditure - 2019-20 | F194: 37.0% | G194: 39.5% | H194: 43.0% | I194: 44.0% | J194: 45.5% | K194: 48.5% | L194: 51.0%
B195: Primary | C195: Large | D195: High FSM | E195: Spend on teaching staff as a percentage of total expenditure - 2019/20 | F195: 38.0% | G195: 40.5% | H195: 43.5% | I195: 45.0% | J195: 46.5% | K195: 49.0% | L195: 51.5%
B196: Primary | C196: Large | D196: High FSM | E196: Spend on supply staff as a percentage of total expenditure | H196: 2.0% | I196: 2.5% | J196: 3.0% | K196: 4.5% | L196: 6.0%
B197: Primary | C197: Large | D197: High FSM | E197: Spend on education support staff as a percentage of total expenditure | H197: 19.5% | I197: 20.5% | J197: 22.0% | K197: 25.0% | L197: 26.5%
B198: Primary | C198: Large | D198: High FSM | E198: Spend on administrative and clerical staff as a percentage of total expenditure | I198: 4.5% | K198: 6.0% | L198: 7.5%
B199: Primary | C199: Large | D199: High FSM | E199: Spend on other staff costs as a percentage of total expenditure | I199: 3.5% | K199: 4.5% | L199: 6.0%
B200: Primary | C200: Large | D200: High FSM | E200: Spend on premises (including staff costs) as a percentage of total expenditure | I200: 5.0% | K200: 7.0% | L200: 8.0%
B201: Primary | C201: Large | D201: High FSM | E201: Spend on teaching resources as a percentage of total expenditure | F201: 2.5% | G201: 3.0% | H201: 4.0% | I201: 4.5% | J201: 5.0%
B202: Primary | C202: Large | D202: High FSM | E202: Spend on energy as a percentage of total expenditure | I202: 1.0% | K202: 1.5% | L202: 2.0%
B203: Primary | C203: Large | D203: High FSM | E203: Senior leaders as a percentage of workforce | H203: 6.5% | I203: 7.0% | J203: 7.5% | K203: 9.0% | L203: 10.5%
B204: Primary | C204: Large | D204: High FSM | E204: Pupil to teacher ratio | F204: 17.0 | G204: 18.0 | H204: 20.0 | I204: 20.5 | J204: 21.0 | K204: 23.0 | L204: 24.5
B205: Primary | C205: Large | D205: High FSM | E205: Pupil to adult ratio | F205: 7.0 | G205: 7.5 | H205: 8.0 | I205: 8.5 | J205: 9.0 | K205: 9.5 | L205: 10.5
B206: Primary | C206: Large | D206: High FSM | E206: Average class size | F206: 24.5 | G206: 25.5 | H206: 27.0 | I206: 27.5 | J206: 28.0 | K206: 29.0 | L206: 29.5
A209: Sample size | B209: Phase | C209: Size | D209: FSM | F209: Red if less than: | G209: Amber if less than: | H209: Dark green if between: | I209: (Median) | J209: and: | K209: Amber if more than: | L209: Red if more than: | N209: Light green for everything else
A210: 59 | B210: Secondary with sixth form | C210: Small | D210: Low FSM | E210: SSSL
B211: Secondary with sixth form | C211: Small | D211: Low FSM | E211: Spend on teaching staff as a percentage of total expenditure - 2017-18 | F211: 44.5% | G211: 48.0% | H211: 52.5% | I211: 54.0% | J211: 56.0% | K211: 60.0% | L211: 62.5%
B212: Secondary with sixth form | C212: Small | D212: Low FSM | E212: Spend on teaching staff as a percentage of total expenditure - 2018-19 | F212: 45.0% | G212: 48.5% | H212: 53.0% | I212: 54.5% | J212: 56.0% | K212: 60.0% | L212: 63.0%
B213: Secondary with sixth form | C213: Small | D213: Low FSM | E213: Spend on teaching staff as a percentage of total expenditure - 2019-20 | F213: 46.5% | G213: 50.0% | H213: 54.5% | I213: 56.0% | J213: 57.5% | K213: 61.5% | L213: 64.0%
B214: Secondary with sixth form | C214: Small | D214: Low FSM | E214: Spend on teaching staff as a percentage of total expenditure - 2019/20 | F214: 47.0% | G214: 50.5% | H214: 55.5% | I214: 57.0% | J214: 58.5% | K214: 62.5% | L214: 65.0%
... 469 more rows

Sheet Calcs (hidden)
A2: RAG ratings for each school
C4: 1 | O4: 2017-18 (financial year)
C5: =IF(Dashboard!D17="Primary","P",IF(Dashboard!D17="Secondary with sixth form","SS",IF(Dashboard!D17="Secondary without sixth form","S",IF(Dashboard!D17="Special","SP",IF(Dashboard!D17="Alternative provision","AP",IF(Dashboard!D17="All-through","AT",IF(Dashboard!D17="Nursery","N"))))))) -> P | O5: 2018-19 (financial year)
C6: =C5& IF($J29="very small","VS",IF($J29="small","S",IF($J29="medium","M",IF($J29="large","L"))))& IF($K29="low levels of FSM","L",IF($K29="medium levels of FSM","M",IF($K29="high levels of FSM","H"))) -> PLH | O6: 2019-20 (financial year)
C7: =C5& IF(AND(C5="SS",$I29="in London"),"Lo",IF($I29="in London","L",IF($I29="outside London","NL"))) -> PNL | O7: 2019/20 (academic year) or later
C8: 1 | D8: 2 | E8: 3 | F8: 4 | G8: 5 | H8: 6 | I8: 7
A9: Spend on teaching staff as a percentage of total expenditure | B9: =IF(Dashboard!D21=O4,1,IF(Dashboard!D21=O5,2,IF(Dashboard!D21=O6,3,IF(Dashboard!D21=O7,4)))) -> 3 | C9: =IF(OR($C$5="P",$C$5="SS",$C$5="S"),INDEX(INDIRECT($C$6),$B9,C$8), IF(OR($C$5="N",$C$5="AP",$C$5="AT",$C$5="SP"),INDEX(INDIRECT($C$7),$B9,C$8))) -> 37.0% | D9: 39.5% | E9: 43.0% | F9: 44.0% | G9: 45.5% | H9: 48.5% | I9: 51.0%
A10: Spend on supply staff as a percentage of total expenditure | B10: 5 | E10: =IF(OR($C$5="P",$C$5="SS",$C$5="S"),INDEX(INDIRECT($C$6),$B10,E$8), IF(OR($C$5="N",$C$5="AP",$C$5="AT",$C$5="SP"),INDEX(INDIRECT($C$7),$B10,E$8))) -> 2.0% | F10: 2.5% | G10: 3.0% | H10: 4.5% | I10: 6.0%
A11: Spend on education support staff as a percentage of total expenditure | B11: 6 | E11: 19.5% | F11: 20.5% | G11: 22.0% | H11: 25.0% | I11: 26.5%
A12: Spend on administrative and clerical staff as a percentage of total expenditure | B12: 7 | F12: =IF(OR($C$5="P",$C$5="SS",$C$5="S"),INDEX(INDIRECT($C$6),$B12,F$8), IF(OR($C$5="N",$C$5="AP",$C$5="AT",$C$5="SP"),INDEX(INDIRECT($C$7),$B12,F$8))) -> 4.5% | H12: =IF(OR($C$5="P",$C$5="SS",$C$5="S"),INDEX(INDIRECT($C$6),$B12,H$8), IF(OR($C$5="N",$C$5="AP",$C$5="AT",$C$5="SP"),INDEX(INDIRECT($C$7),$B12,H$8))) -> 6.0% | I12: =IF(OR($C$5="P",$C$5="SS",$C$5="S"),INDEX(INDIRECT($C$6),$B12,I$8), IF(OR($C$5="N",$C$5="AP",$C$5="AT",$C$5="SP"),INDEX(INDIRECT($C$7),$B12,I$8))) -> 7.5%
A13: Spend on other staff costs as a percentage of total expenditure | B13: 8 | F13: 3.5% | H13: =IF(OR($C$5="P",$C$5="SS",$C$5="S"),INDEX(INDIRECT($C$6),$B13,H$8), IF(OR($C$5="N",$C$5="AP",$C$5="AT",$C$5="SP"),INDEX(INDIRECT($C$7),$B13,H$8))) -> 4.5% | I13: =IF(OR($C$5="P",$C$5="SS",$C$5="S"),INDEX(INDIRECT($C$6),$B13,I$8), IF(OR($C$5="N",$C$5="AP",$C$5="AT",$C$5="SP"),INDEX(INDIRECT($C$7),$B13,I$8))) -> 6.0%
A14: Spend on premises (including staff costs) as a percentage of total expenditure | B14: 9 | F14: 5.0% | H14: =IF(OR($C$5="P",$C$5="SS",$C$5="S"),INDEX(INDIRECT($C$6),$B14,H$8), IF(OR($C$5="N",$C$5="AP",$C$5="AT",$C$5="SP"),INDEX(INDIRECT($C$7),$B14,H$8))) -> 7.0% | I14: 8.0%
A15: Spend on teaching resources as a percentage of total expenditure | B15: 10 | C15: =IF(OR($C$5="P",$C$5="SS",$C$5="S"),INDEX(INDIRECT($C$6),$B15,C$8), IF(OR($C$5="N",$C$5="AP",$C$5="AT",$C$5="SP"),INDEX(INDIRECT($C$7),$B15,C$8))) -> 2.5% | D15: =IF(OR($C$5="P",$C$5="SS",$C$5="S"),INDEX(INDIRECT($C$6),$B15,D$8), IF(OR($C$5="N",$C$5="AP",$C$5="AT",$C$5="SP"),INDEX(INDIRECT($C$7),$B15,D$8))) -> 3.0% | E15: =IF(OR($C$5="P",$C$5="SS",$C$5="S"),INDEX(INDIRECT($C$6),$B15,E$8), IF(OR($C$5="N",$C$5="AP",$C$5="AT",$C$5="SP"),INDEX(INDIRECT($C$7),$B15,E$8))) -> 4.0% | F15: =IF(OR($C$5="P",$C$5="SS",$C$5="S"),INDEX(INDIRECT($C$6),$B15,F$8), IF(OR($C$5="N",$C$5="AP",$C$5="AT",$C$5="SP"),INDEX(INDIRECT($C$7),$B15,F$8))) -> 4.5% | G15: =IF(OR($C$5="P",$C$5="SS",$C$5="S"),INDEX(INDIRECT($C$6),$B15,G$8), IF(OR($C$5="N",$C$5="AP",$C$5="AT",$C$5="SP"),INDEX(INDIRECT($C$7),$B15,G$8))) -> 5.0%
A16: Spend on energy as a percentage of total expenditure | B16: 11 | F16: 1.0% | H16: 1.5% | I16: 2.0%
A17: Senior leaders as a percentage of workforce | B17: 12 | E17: =IF(OR($C$5="P",$C$5="SS",$C$5="S"),INDEX(INDIRECT($C$6),$B17,E$8), IF(OR($C$5="N",$C$5="AP",$C$5="AT",$C$5="SP"),INDEX(INDIRECT($C$7),$B17,E$8))) -> 6.5% | F17: 7.0% | G17: =IF(OR($C$5="P",$C$5="SS",$C$5="S"),INDEX(INDIRECT($C$6),$B17,G$8), IF(OR($C$5="N",$C$5="AP",$C$5="AT",$C$5="SP"),INDEX(INDIRECT($C$7),$B17,G$8))) -> 7.5% | H17: 9.0% | I17: 10.5%
A18: Pupil to teacher ratio | B18: 13 | C18: =IF(OR($C$5="P",$C$5="SS",$C$5="S"),INDEX(INDIRECT($C$6),$B18,C$8), IF(OR($C$5="N",$C$5="AP",$C$5="AT",$C$5="SP"),INDEX(INDIRECT($C$7),$B18,C$8))) -> 17.0 | D18: =IF(OR($C$5="P",$C$5="SS",$C$5="S"),INDEX(INDIRECT($C$6),$B18,D$8), IF(OR($C$5="N",$C$5="AP",$C$5="AT",$C$5="SP"),INDEX(INDIRECT($C$7),$B18,D$8))) -> 18.0 | E18: =IF(OR($C$5="P",$C$5="SS",$C$5="S"),INDEX(INDIRECT($C$6),$B18,E$8), IF(OR($C$5="N",$C$5="AP",$C$5="AT",$C$5="SP"),INDEX(INDIRECT($C$7),$B18,E$8))) -> 20.0 | F18: 20.5 | G18: =IF(OR($C$5="P",$C$5="SS",$C$5="S"),INDEX(INDIRECT($C$6),$B18,G$8), IF(OR($C$5="N",$C$5="AP",$C$5="AT",$C$5="SP"),INDEX(INDIRECT($C$7),$B18,G$8))) -> 21.0 | H18: 23.0 | I18: 24.5
A19: Pupil to adult ratio | B19: 14 | C19: =IF(OR($C$5="P",$C$5="SS",$C$5="S"),INDEX(INDIRECT($C$6),$B19,C$8), IF(OR($C$5="N",$C$5="AP",$C$5="AT",$C$5="SP"),INDEX(INDIRECT($C$7),$B19,C$8))) -> 7.0 | D19: =IF(OR($C$5="P",$C$5="SS",$C$5="S"),INDEX(INDIRECT($C$6),$B19,D$8), IF(OR($C$5="N",$C$5="AP",$C$5="AT",$C$5="SP"),INDEX(INDIRECT($C$7),$B19,D$8))) -> 7.5 | E19: =IF(OR($C$5="P",$C$5="SS",$C$5="S"),INDEX(INDIRECT($C$6),$B19,E$8), IF(OR($C$5="N",$C$5="AP",$C$5="AT",$C$5="SP"),INDEX(INDIRECT($C$7),$B19,E$8))) -> 8.0 | F19: 8.5 | G19: =IF(OR($C$5="P",$C$5="SS",$C$5="S"),INDEX(INDIRECT($C$6),$B19,G$8), IF(OR($C$5="N",$C$5="AP",$C$5="AT",$C$5="SP"),INDEX(INDIRECT($C$7),$B19,G$8))) -> 9.0 | H19: 9.5 | I19: 10.5
A20: Average class size | B20: 15 | C20: =IF(OR($C$5="P",$C$5="SS",$C$5="S"),INDEX(INDIRECT($C$6),$B20,C$8), IF(OR($C$5="N",$C$5="AP",$C$5="SP"),"",IF($C$5="AT",INDEX(INDIRECT($C$7),$B20,C$8)))) -> 24.5 | D20: 25.5 | E20: 27.0 | F20: 27.5 | G20: 28.0 | H20: 29.0 | I20: 29.5
A21: Average teacher cost | B21: =IF(Dashboard!D21=O4,16,IF(Dashboard!D21=O5,17,IF(Dashboard!D21=O6,18,IF(Dashboard!D21=O7,19))))-IF(OR($C$5="N",$C$5="AP",$C$5="SP"),1,0) -> 18 | C21: =IF(OR($C$5="P",$C$5="SS",$C$5="S"),INDEX(INDIRECT($C$7),$B$9,C$8), IF(OR($C$5="N",$C$5="AP",$C$5="SP",$C$5="AT"),INDEX(INDIRECT($C$7),$B21,C$8))) -> £42,500 | D21: =IF(OR($C$5="P",$C$5="SS",$C$5="S"),INDEX(INDIRECT($C$7),$B$9,D$8), IF(OR($C$5="N",$C$5="AP",$C$5="SP",$C$5="AT"),INDEX(INDIRECT($C$7),$B21,D$8))) -> £45,500 | E21: =IF(OR($C$5="P",$C$5="SS",$C$5="S"),INDEX(INDIRECT($C$7),$B$9,E$8), IF(OR($C$5="N",$C$5="AP",$C$5="SP",$C$5="AT"),INDEX(INDIRECT($C$7),$B21,E$8))) -> £48,500 | F21: £50,000 | G21: £51,500 | H21: £55,000 | I21: £58,000
A26: Information for the 'RAG rating data for your school' look ups
A28: School name from dashboard | D28: Named ranges for RAG ratings above | E28: School information from dashboard | I28: Info for comparison description
A29: =IF(Dashboard!D$15=0,"",Dashboard!D$15) -> The Richmond School, Skegness | B29: 1 | C29: H | D29: A | E29: =IF(Dashboard!D$17=0,"",Dashboard!D$17) -> Primary | F29: =IF(Dashboard!D$18=0,"",Dashboard!D$18) -> East Midlands | G29: =IF(Dashboard!D$19=0,"",Dashboard!D$19) -> 420 | H29: =Dashboard!D$20 -> 0.33 | I29: =IF(F29="","",IF(OR(F29="Inner London",F29="Outer London"),"in London","outside London")) -> outside London | J29: =IF(AND(E29="Primary",G29<=$X$30),"very small",IF(AND(E29="Primary",G29<=$Y$30,G29>$X$30),"small",IF(AND(E29="Primary",G29>$Y$30,G29<=$Z$30),"medium",IF(AND(E29="Primary",G29>$Z$30),"large", IF(AND(E29="Secondary with sixth form",G29<=$Y$31),"small",IF(AND(E29="Secondary with sixth form",G29>$Y$31,G29<=$Z$31),"medium",IF(AND(E29="Secondary with sixth form",G29>$Z$31),"large", IF(AND(E29="Secondary without sixth form",G29<=$Y$32),"small",IF(AND(E29="Secondary without sixth form",G29>$Y$32,G29<=$Z$32),"medium",IF(AND(E29="Secondary without sixth form",G29>$Z$32),"large","")))))))))) -> large | K29: =IF(AND(E29="Primary",H29<=$X$35),"low levels of FSM",IF(AND(E29="Primary",H29>$X$35,H29<=$Y$35),"medium levels of FSM",IF(AND(E29="Primary",H29>$Y$35),"high levels of FSM", IF(AND(E29="Secondary with sixth form",H29<=$X$36),"low levels of FSM",IF(AND(E29="Secondary with sixth form",H29>$X$36,H29<=$Y$36),"medium levels of FSM",IF(AND(E29="Secondary with sixth form",H29>$Y$36),"high levels of FSM", IF(AND(E29="Secondary without sixth form",H29<=$X$37),"low levels of FSM",IF(AND(E29="Secondary without sixth form",H29>$X$37,H29<=$Y$37),"medium levels of FSM",IF(AND(E29="Secondary without sixth form",H29>$Y$37),"high levels of FSM",""))))))))) -> high levels of FSM | L29: =IF(E29="Primary","a primary school",IF(E29="Secondary with sixth form","a secondary school with a sixth form",IF(E29="Secondary without sixth form","a secondary school without a sixth form",IF(E29="Special","a special school",IF(E29="Alternative provision","an alternative provision school",IF(E29="All-through","an all-through school",IF(E29="Nursery","a nursery school",""))))))) -> a primary school | M29: =IF(AND(E29="Primary",J29="very small"),$X$30&" or fewer pupils", IF(AND(E29="Primary",J29="small"),"between "&$X$30+1&" and "&$Y$30&" pupils", IF(AND(E29="Primary",J29="medium"),"between "&$Y$30+1&" and "&$Z$30&" pupils", IF(AND(E29="Primary",J29="large"),"more than "&$Z$30&" pupils", IF(AND(E29="Secondary with sixth form",J29="small"),$Y$31&" or fewer pupils", IF(AND(E29="Secondary with sixth form",J29="medium"),"between "&$Y$31+1&" and "&$Z$31&" pupils", IF(AND(E29="Secondary with sixth form",J29="large"),"more than "&$Z$31&" pupils", IF(AND(E29="Secondary without sixth form",J29="small"),$Y$32&" or fewer pupils", IF(AND(E29="Secondary without sixth form",J29="medium"),"between "&$Y$32+1&" and "&$Z$32&" pupils", IF(AND(E29="Secondary without sixth form",J29="large"),"more than "&$Z$32&" pupils","")))))))))) -> more than 385 pupils | N29: =IF(AND(E29="Primary",K29="low levels of FSM"),"less than "&$Z$35&" of pupils", IF(AND(E29="Primary",K29="medium levels of FSM"),"between "&$Z$35&" and "&$AA$35&" of pupils", IF(AND(E29="Primary",K29="high levels of FSM"),"more than "&$AA$35&" of pupils", IF(AND(E29="Secondary with sixth form",K29="low levels of FSM"),"less than "&$Z$36&" of pupils", IF(AND(E29="Secondary with sixth form",K29="medium levels of FSM"),"between "&$Z$36&" and "&$AA$36&" of pupils", IF(AND(E29="Secondary with sixth form",K29="high levels of FSM"),"more than "&$AA$36&" of pupils", IF(AND(E29="Secondary without sixth form",K29="low levels of FSM"),"less than "&$Z$37&" of pupils", IF(AND(E29="Secondary without sixth form",K29="medium levels of FSM"),"between "&$Z$37&" and "&$AA$37&" of pupils", IF(AND(E29="Secondary without sixth form",K29="high levels of FSM"),"more than "&$AA$37&" of pupils",""))))))))) -> more than 18% of pupils | O29: =IF(Dashboard!D$21=0,"",Dashboard!D$21) -> 2019-20 (financial year) | X29: Very small | Y29: Small | Z29: Medium
W30: Primary | X30: 100 | Y30: 175 | Z30: 385
W31: Secondary with sixth form | Y31: 770 | Z31: 1,300
W32: Secondary without sixth form | Y32: 485 | Z32: 935
X34: Low | Y34: Medium
W35: Primary | X35: 0.05 | Y35: 0.18 | Z35: =(X35*100)&"%" -> 5% | AA35: 18%
W36: Secondary with sixth form | X36: 0.06 | Y36: 0.165 | Z36: 6% | AA36: 16.5%
W37: Secondary without sixth form | X37: 0.08 | Y37: 0.215 | Z37: 8% | AA37: 21.5%
A43: RAG rating text for dashboard
A45: Lowest 10% of similar schools | B45: Much lower than recommended
A46: Lowest 20% of similar schools | B46: Lower than recommended
A47: Broadly in line with similar schools | B47: Broadly in line with recommendations
A48: Middle 20% of similar schools | B48: Higher than recommended
A49: Highest 20% of similar schools | B49: Much higher than recommended
A50: Highest 10% of similar schools
B51: Inadequate
B52: Requires Improvement
A53: High risk | B53: Good
A54: Medium risk | B54: Outstanding
A55: Low risk
B56: Well below average
B57: Below average
B58: Average or above average
B59: Well above average
A62: Primary
A63: Secondary with sixth form
A64: Secondary without sixth form
A65: All-through
A66: ="" -> 
